Workbook

Sheet Input-data
B2: Illustration of reciprocity and symmetry | O2: Rsrc | P2: Rload
O3: 20 | P3: 100
O4: Zo | P4: tpd
O5: 50 | P5: 2e-10
O6: C_left | P6: C_right
O7: 1e-12 | P7: 1e-15
O8: R_left | P8: R_right
O9: 1000000000 | P9: 1000000000
O10: L_left | P10: L_right
O11: 1 | P11: 1
O12: Fsteps | P12: Zref
O13: 100 | P13: 50
O14: Fmin | P14: Fmax
O15: 100000000 | P15: 10000000000
E57: N2 | I57: N4 | M57: ="S21" -> S21 | Q57: ="S12" -> S12
C58: N1 | E58: Forward | G58: N3 | I58: Reverse | K58: N5 | M58: N6 | O58: N7 | Q58: N8
B59: Frequency | C59: VdB(1) | D59: VP(1) | E59: VdB(2) | F59: VP(2) | G59: VdB(3) | H59: VP(1) | I59: VdB(4) | J59: VP(4) | K59: VdB(5) | L59: VP(5) | M59: VdB(6) | N59: VP(6) | O59: VdB(7) | P59: VP(7) | Q59: VdB(8) | R59: VP(8) | S59: Re_V(5) | T59: Im_V(5) | U59: S11 | V59: Ph_S11 | W59: Re_V(7) | X59: Im_V(7) | Y59: S22 | Z59: Ph_S22
B60: 100000000 | C60: 4.412 | D60: -2.397 | E60: 4.464 | F60: -6.011 | G60: 4.401 | H60: -2.398 | I60: 4.486 | J60: -6.027 | K60: -0.001108 | L60: -0.9008 | M60: -0.001074 | N60: -8.101 | O60: -0.03507 | P60: -0.8724 | Q60: -0.001074 | R60: -8.101 | S60: =10^(K60/20)*COS(PI()/180*L60) -> 0.9997488738 | T60: =10^(K60/20)*SIN(PI()/180*L60) -> -0.01571927289 | U60: =10*LOG((S60-1)^2+T60^2) -> -36.07024265 | V60: =180/PI()*ATAN2((S60-1),T60) -> -90.91526181 | W60: =10^(O60/20)*COS(PI()/180*P60) -> 0.9958551071 | X60: =10^(O60/20)*SIN(PI()/180*P60) -> -0.01516431312 | Y60: =10*LOG((W60-1)^2+X60^2) -> -36.07063056 | Z60: =180/PI()*ATAN2((W60-1),X60) -> -105.2873665
B61: 102300000 | C61: 4.411 | D61: -2.452 | E61: 4.465 | F61: -6.152 | G61: 4.399 | H61: -2.454 | I61: 4.489 | J61: -6.169 | K61: -0.00116 | L61: -0.9218 | M61: -0.001124 | N61: -8.29 | O61: -0.03671 | P61: -0.8914 | Q61: -0.001124 | R61: -8.29 | S61: =10^(K60/20)*COS(PI()/180*L60) -> 0.9997488738 | T61: =10^(K60/20)*SIN(PI()/180*L60) -> -0.01571927289 | U61: =10*LOG((S60-1)^2+T60^2) -> -36.07024265 | V61: =180/PI()*ATAN2((S60-1),T60) -> -90.91526181 | W61: =10^(O60/20)*COS(PI()/180*P60) -> 0.9958551071 | X61: =10^(O60/20)*SIN(PI()/180*P60) -> -0.01516431312 | Y61: =10*LOG((W60-1)^2+X60^2) -> -36.07063056 | Z61: =180/PI()*ATAN2((W60-1),X60) -> -105.2873665
B62: 104700000 | C62: 4.41 | D62: -2.509 | E62: 4.466 | F62: -6.295 | G62: 4.397 | H62: -2.511 | I62: 4.491 | J62: -6.314 | K62: -0.001215 | L62: -0.9432 | M62: -0.001178 | N62: -8.483 | O62: -0.03842 | P62: -0.9107 | Q62: -0.001178 | R62: -8.483 | S62: 0.99973706 | T62: -0.01608560263 | U62: -36.07024265 | V62: -90.91526181 | W62: 0.995662013 | X62: -0.01549162506 | Y62: -36.07063056 | Z62: -105.2873665
B63: 107200000 | C63: 4.408 | D63: -2.568 | E63: 4.468 | F63: -6.443 | G63: 4.395 | H63: -2.569 | I63: 4.494 | J63: -6.462 | K63: -0.001272 | L63: -0.9652 | M63: -0.001233 | N63: -8.68 | O63: -0.04021 | P63: -0.9303 | Q63: -0.001233 | R63: -8.68 | S63: 0.9997246519 | T63: -0.01645889953 | U63: -35.870093 | V63: -90.9364902 | W63: 0.9954607415 | X63: -0.0158238959 | Y63: -35.87021333 | Z63: -105.6433852
B64: 109600000 | C64: 4.407 | D64: -2.627 | E64: 4.469 | F64: -6.593 | G64: 4.393 | H64: -2.629 | I64: 4.496 | J64: -6.614 | K64: -0.001332 | L64: -0.9877 | M64: -0.001291 | N64: -8.882 | O64: -0.04209 | P64: -0.9503 | Q64: -0.001291 | R64: -8.882 | S64: 0.999711698 | T64: -0.01684265449 | U64: -35.67076881 | V64: -90.95843656 | W64: 0.9952501465 | X64: -0.01616109585 | Y64: -35.67029829 | Z64: -106.0061205
B65: 112200000 | C65: 4.406 | D65: -2.688 | E65: 4.471 | F65: -6.748 | G65: 4.391 | H65: -2.69 | I65: 4.499 | J65: -6.77 | K65: -0.001395 | L65: -1.011 | M65: -0.001352 | N65: -9.089 | O65: -0.04405 | P65: -0.9706 | Q65: -0.001352 | R65: -9.089 | S65: 0.9996981011 | T65: -0.01723511999 | U65: -35.47051689 | V65: -90.98065757 | W65: 0.9950290542 | X65: -0.01650492993 | Y65: -35.47076179 | Z65: -106.3784129
B66: 114800000 | C66: 4.404 | D66: -2.75 | E66: 4.472 | F66: -6.905 | G66: 4.389 | H66: -2.753 | I66: 4.502 | J66: -6.929 | K66: -0.00146 | L66: -1.034 | M66: -0.001416 | N66: -9.301 | O66: -0.04611 | P66: -0.9913 | Q66: -0.001416 | R66: -9.301 | S66: 0.9996837587 | T66: -0.01764152954 | U66: -35.27038144 | V66: -91.00351865 | W66: 0.994798639 | X66: -0.01685366599 | Y66: -35.27063708 | Z66: -106.7612221
B67: 117500000 | C67: 4.403 | D67: -2.814 | E67: 4.474 | F67: -7.067 | G67: 4.386 | H67: -2.817 | I67: 4.505 | J67: -7.093 | K67: -0.001529 | L67: -1.058 | M67: -0.001482 | N67: -9.518 | O67: -0.04825 | P67: -1.012 | Q67: -0.001482 | R67: -9.518 | S67: 0.9996691154 | T67: -0.01804269187 | U67: -35.06787994 | V67: -91.0269717 | W67: 0.9945565819 | X67: -0.017208987 | Y67: -35.07099691 | Z67: -107.151218
B68: 120200000 | C68: 4.401 | D68: -2.879 | E68: 4.475 | F68: -7.232 | G68: 4.384 | H68: -2.882 | I68: 4.508 | J68: -7.26 | K68: -0.001601 | L68: -1.083 | M68: -0.001552 | N68: -9.739 | O68: -0.0505 | P68: -1.034 | Q68: -0.001552 | R68: -9.739 | S68: 0.9996535288 | T68: -0.01846128404 | U68: -34.87251299 | V68: -91.05062839 | W68: 0.994305296 | X68: -0.01756397453 | Y68: -34.87075536 | Z68: -107.5528152
B69: 123000000 | C69: 4.399 | D69: -2.946 | E69: 4.477 | F69: -7.402 | G69: 4.382 | H69: -2.949 | I69: 4.512 | J69: -7.431 | K69: -0.001676 | L69: -1.108 | M69: -0.001625 | N69: -9.966 | O69: -0.05285 | P69: -1.055 | Q69: -0.001625 | R69: -9.966 | S69: 0.9996370921 | T69: -0.01889730676 | U69: -34.67323253 | V69: -91.07516929 | W69: 0.994040948 | X69: -0.01794111097 | Y69: -34.67343883 | Z69: -107.9640624
B70: 125900000 | C70: 4.398 | D70: -3.014 | E70: 4.479 | F70: -7.575 | G70: 4.379 | H70: -3.017 | I70: 4.515 | J70: -7.607 | K70: -0.001755 | L70: -1.134 | M70: -0.001702 | N70: -10.2 | O70: -0.05531 | P70: -1.077 | Q70: -0.001702 | R70: -10.2 | S70: 0.99962012 | T70: -0.01933331197 | U70: -34.47040035 | V70: -91.10018516 | W70: 0.9937654022 | X70: -0.01830049285 | Y70: -34.46853031 | Z70: -108.3736539
B71: 128800000 | C71: 4.396 | D71: -3.084 | E71: 4.481 | F71: -7.753 | G71: 4.376 | H71: -3.087 | I71: 4.519 | J71: -7.787 | K71: -0.001838 | L71: -1.16 | M71: -0.001782 | N71: -10.44 | O71: -0.05788 | P71: -1.1 | Q71: -0.001782 | R71: -10.44 | S71: 0.9996021522 | T71: -0.01978674322 | U71: -34.27219841 | V71: -91.12565929 | W71: 0.9934768917 | X71: -0.01867677967 | Y71: -34.27385975 | Z71: -108.8129104
B72: 131800000 | C72: 4.394 | D72: -3.156 | E72: 4.483 | F72: -7.934 | G72: 4.373 | H72: -3.159 | I72: 4.523 | J72: -7.971 | K72: -0.001924 | L72: -1.187 | M72: -0.001866 | N72: -10.68 | O72: -0.06056 | P72: -1.122 | Q72: -0.001866 | R72: -10.68 | S72: 0.9995835186 | T72: -0.02024015282 | U72: -34.07075822 | V72: -91.15187864 | W72: 0.9931754079 | X72: -0.01906994205 | Y72: -34.07409093 | Z72: -109.2524195
B73: 134900000 | C73: 4.392 | D73: -3.229 | E73: 4.485 | F73: -8.12 | G73: 4.37 | H73: -3.232 | I73: 4.527 | J73: -8.159 | K73: -0.002015 | L73: -1.215 | M73: -0.001953 | N73: -10.93 | O73: -0.06337 | P73: -1.145 | Q73: -0.001953 | R73: -10.93 | S73: 0.9995639728 | T73: -0.02071098813 | U73: -33.87388578 | V73: -91.17880832 | W73: 0.9928616212 | X73: -0.01944529191 | Y73: -33.86964382 | Z73: -109.6908499
B74: 138000000 | C74: 4.389 | D74: -3.304 | E74: 4.488 | F74: -8.311 | G74: 4.367 | H74: -3.307 | I74: 4.531 | J74: -8.352 | K74: -0.002109 | L74: -1.243 | M74: -0.002046 | N74: -11.18 | O74: -0.06631 | P74: -1.169 | Q74: -0.002046 | R74: -11.18 | S74: 0.9995432601 | T74: -0.02119924265 | U74: -33.67405912 | V74: -91.20606647 | W74: 0.992532586 | X74: -0.01983743182 | Y74: -33.6746595 | Z74: -110.1582176
B75: 141300000 | C75: 4.387 | D75: -3.38 | E75: 4.49 | F75: -8.506 | G75: 4.364 | H75: -3.384 | I75: 4.535 | J75: -8.55 | K75: -0.002209 | L75: -1.272 | M75: -0.002142 | N75: -11.44 | O75: -0.06938 | P75: -1.192 | Q75: -0.002142 | R75: -11.44 | S75: 0.9995219638 | T75: -0.02168747438 | U75: -33.47157759 | V75: -91.23425258 | W75: 0.9921882967 | X75: -0.02024632701 | Y75: -33.4747714 | Z75: -110.6278671
B76: 144500000 | C76: 4.385 | D76: -3.458 | E76: 4.493 | F76: -8.705 | G76: 4.36 | H76: -3.462 | I76: 4.54 | J76: -8.753 | K76: -0.002313 | L76: -1.302 | M76: -0.002243 | N76: -11.71 | O76: -0.07259 | P76: -1.216 | Q76: -0.002243 | R76: -11.71 | S76: 0.9994993515 | T76: -0.02219311959 | U76: -33.27371091 | V76: -91.26271141 | W76: 0.9918294685 | X76: -0.02063731979 | Y76: -33.2703768 | Z76: -111.0982656
B77: 147900000 | C77: 4.382 | D77: -3.538 | E77: 4.495 | F77: -8.909 | G77: 4.356 | H77: -3.543 | I77: 4.545 | J77: -8.961 | K77: -0.002421 | L77: -1.332 | M77: -0.002348 | N77: -11.98 | O77: -0.07595 | P77: -1.241 | Q77: -0.002348 | R77: -11.98 | S77: 0.999475627 | T77: -0.02271618117 | U77: -33.07342339 | V77: -91.29230049 | W77: 0.9914542625 | X77: -0.0210449956 | Y77: -33.07455735 | Z77: -111.5991326
B78: 151400000 | C78: 4.38 | D78: -3.62 | E78: 4.498 | F78: -9.119 | G78: 4.353 | H78: -3.625 | I78: 4.55 | J78: -9.174 | K78: -0.002536 | L78: -1.363 | M78: -0.002459 | N78: -12.26 | O78: -0.07946 | P78: -1.265 | Q78: -0.002459 | R78: -12.26 | S78: 0.9994511686 | T78: -0.02323921329 | U78: -32.87097998 | V78: -91.32236244 | W78: 0.9910615348 | X78: -0.02146929045 | Y78: -32.87416399 | Z78: -112.1005865
B79: 154900000 | C79: 4.377 | D79: -3.704 | E79: 4.501 | F79: -9.333 | G79: 4.349 | H79: -3.709 | I79: 4.555 | J79: -9.392 | K79: -0.002655 | L79: -1.395 | M79: -0.002575 | N79: -12.55 | O79: -0.08313 | P79: -1.29 | Q79: -0.002575 | R79: -12.55 | S79: 0.9994252164 | T79: -0.02377965014 | U79: -32.67314998 | V79: -91.35288045 | W79: 0.9906520477 | X79: -0.02187558165 | Y79: -32.66941962 | Z79: -112.6037807
B80: 158500000 | C80: 4.374 | D80: -3.789 | E80: 4.504 | F80: -9.552 | G80: 4.344 | H80: -3.794 | I80: 4.561 | J80: -9.615 | K80: -0.00278 | L80: -1.427 | M80: -0.002696 | N80: -12.84 | O80: -0.08696 | P80: -1.315 | Q80: -0.002696 | R80: -12.84 | S80: 0.9993980872 | T80: -0.02433749731 | U80: -32.47335416 | V80: -91.38464042 | W80: 0.9902239263 | X80: -0.02229840944 | Y80: -32.47240903 | Z80: -113.1381619
B81: 162200000 | C81: 4.371 | D81: -3.877 | E81: 4.507 | F81: -9.777 | G81: 4.34 | H81: -3.882 | I81: 4.566 | J81: -9.844 | K81: -0.002911 | L81: -1.461 | M81: -0.002823 | N81: -13.14 | O81: -0.09097 | P81: -1.34 | Q81: -0.002823 | R81: -13.14 | S81: 0.9993699565 | T81: -0.0248953044 | U81: -32.27182604 | V81: -91.41674525 | W81: 0.9897775687 | X81: -0.02272045332 | Y81: -32.27098632 | Z81: -113.6736173
B82: 166000000 | C82: 4.368 | D82: -3.966 | E82: 4.51 | F82: -10.01 | G82: 4.335 | H82: -3.972 | I82: 4.572 | J82: -10.08 | K82: -0.003048 | L82: -1.495 | M82: -0.002956 | N82: -13.44 | O82: -0.09515 | P82: -1.365 | Q82: -0.002956 | R82: -13.44 | S82: 0.9993399353 | T82: -0.02548795364 | U82: -32.0748705 | V82: -91.44971629 | W82: 0.989310722 | X82: -0.02314163685 | Y82: -32.0710629 | Z82: -114.2240276
B83: 169800000 | C83: 4.365 | D83: -4.058 | E83: 4.514 | F83: -10.24 | G83: 4.33 | H83: -4.064 | I83: 4.579 | J83: -10.32 | K83: -0.003191 | L83: -1.529 | M83: -0.003095 | N83: -13.76 | O83: -0.09952 | P83: -1.391 | Q83: -0.003095 | R83: -13.76 | S83: 0.9993088726 | T83: -0.02608055801 | U83: -31.87038896 | V83: -91.48346434 | W83: 0.9888245536 | X83: -0.02356196118 | Y83: -31.87222953 | Z83: -114.7925334
B84: 173800000 | C84: 4.361 | D84: -4.151 | E84: 4.517 | F84: -10.48 | G84: 4.325 | H84: -4.158 | I84: 4.585 | J84: -10.57 | K84: -0.003342 | L84: -1.565 | M84: -0.003241 | N84: -14.08 | O84: -0.1041 | P84: -1.417 | Q84: -0.003241 | R84: -14.08 | S84: 0.9992767684 | T84: -0.02667311607 | U84: -31.67061372 | V84: -91.51796675 | W84: 0.988316398 | X84: -0.023998596 | Y84: -31.6745493 | Z84: -115.3750017
B85: 177800000 | C85: 4.358 | D85: -4.247 | E85: 4.521 | F85: -10.73 | G85: 4.32 | H85: -4.254 | I85: 4.592 | J85: -10.82 | K85: -0.003499 | L85: -1.601 | M85: -0.003394 | N85: -14.41 | O85: -0.1089 | P85: -1.442 | Q85: -0.003394 | R85: -14.41 | S85: 0.9992424404 | T85: -0.02730050027 | U85: -31.47533313 | V85: -91.55317317 | W85: 0.9877844179 | X85: -0.02443418991 | Y85: -31.47252214 | Z85: -115.958914
B86: 182000000 | C86: 4.354 | D86: -4.345 | E86: 4.525 | F86: -10.98 | G86: 4.314 | H86: -4.352 | I86: 4.6 | J86: -11.08 | K86: -0.003663 | L86: -1.639 | M86: -0.003553 | N86: -14.74 | O86: -0.1138 | P86: -1.468 | Q86: -0.003553 | R86: -14.74 | S86: 0.9992070287 | T86: -0.02792783257 | U86: -31.2732451 | V86: -91.58948848 | W86: 0.9872279493 | X86: -0.02485145262 | Y86: -31.27115607 | Z86: -116.5622131
B87: 186200000 | C87: 4.35 | D87: -4.445 | E87: 4.529 | F87: -11.24 | G87: 4.308 | H87: -4.453 | I87: 4.607 | J87: -11.34 | K87: -0.003835 | L87: -1.677 | M87: -0.003721 | N87: -15.08 | O87: -0.119 | P87: -1.494 | Q87: -0.003721 | R87: -15.08 | S87: 0.9991694208 | T87: -0.02858998576 | U87: -31.0757555 | V87: -91.62639573 | W87: 0.9866598057 | X87: -0.02528517164 | Y87: -31.07504708 | Z87: -117.2002533
B88: 190500000 | C88: 4.346 | D88: -4.547 | E88: 4.533 | F88: -11.51 | G88: 4.302 | H88: -4.555 | I88: 4.615 | J88: -11.62 | K88: -0.004016 | L88: -1.716 | M88: -0.003896 | N88: -15.44 | O88: -0.1245 | P88: -1.52 | Q88: -0.003896 | R88: -15.44 | S88: 0.9991304542 | T88: -0.02925207441 | U88: -30.87205739 | V88: -91.66405482 | W88: 0.9860577281 | X88: -0.02571750008 | Y88: -30.87618135 | Z88: -117.8156641
B89: 195000000 | C89: 4.342 | D89: -4.652 | E89: 4.538 | F89: -11.78 | G89: 4.295 | H89: -4.66 | I89: 4.623 | J89: -11.9 | K89: -0.004205 | L89: -1.756 | M89: -0.004079 | N89: -15.79 | O89: -0.1301 | P89: -1.546 | Q89: -0.004079 | R89: -15.79 | S89: 0.9990894919 | T89: -0.02993153038 | U89: -30.67303074 | V89: -91.70267026 | W89: 0.9854217789 | X89: -0.02614839353 | Y89: -30.67639513 | Z89: -118.4635247
B90: 199500000 | C90: 4.337 | D90: -4.758 | E90: 4.543 | F90: -12.06 | G90: 4.289 | H90: -4.768 | I90: 4.632 | J90: -12.18 | K90: -0.004402 | L90: -1.797 | M90: -0.004272 | N90: -16.16 | O90: -0.1361 | P90: -1.572 | Q90: -0.004272 | R90: -16.16 | S90: 0.9990466133 | T90: -0.03062835261 | U90: -30.47340463 | V90: -91.74238306 | W90: 0.9847746993 | X90: -0.02657841978 | Y90: -30.47564525 | Z90: -119.1404886
B91: 204200000 | C91: 4.332 | D91: -4.868 | E91: 4.548 | F91: -12.34 | G91: 4.281 | H91: -4.877 | I91: 4.641 | J91: -12.48 | K91: -0.00461 | L91: -1.839 | M91: -0.004473 | N91: -16.54 | O91: -0.1422 | P91: -1.598 | Q91: -0.004473 | R91: -16.54 | S91: 0.9990017823 | T91: -0.0313425366 | U91: -30.27332128 | V91: -91.78290363 | W91: 0.984082522 | X91: -0.02700663164 | Y91: -30.27694304 | Z91: -119.8059997
B92: 208900000 | C92: 4.327 | D92: -4.979 | E92: 4.553 | F92: -12.63 | G92: 4.274 | H92: -4.989 | I92: 4.651 | J92: -12.78 | K92: -0.004826 | L92: -1.881 | M92: -0.004683 | N92: -16.92 | O92: -0.1487 | P92: -1.624 | Q92: -0.004683 | R92: -16.92 | S92: 0.9989546164 | T92: -0.03207406659 | U92: -30.07291419 | V92: -91.8241771 | W92: 0.983379307 | X92: -0.02743391804 | Y92: -30.07568323 | Z92: -120.5147343
B93: 213800000 | C93: 4.322 | D93: -5.093 | E93: 4.558 | F93: -12.93 | G93: 4.266 | H93: -5.104 | I93: 4.661 | J93: -13.09 | K93: -0.005053 | L93: -1.925 | M93: -0.004904 | N93: -17.32 | O93: -0.1554 | P93: -1.649 | Q93: -0.004904 | R93: -17.32 | S93: =10^(K92/20)*COS(PI()/180*L92) -> 0.9989059955 | T93: =10^(K92/20)*SIN(PI()/180*L92) -> -0.03280551407 | U93: =10*LOG((S92-1)^2+T92^2) -> -29.87230845 | V93: =180/PI()*ATAN2((S92-1),T92) -> -91.86676891 | W93: =10^(O92/20)*COS(PI()/180*P92) -> 0.982631139 | X93: =10^(O92/20)*SIN(PI()/180*P92) -> -0.02785930254 | Y93: =10*LOG((W92-1)^2+X92^2) -> -29.87640637 | Z93: =180/PI()*ATAN2((W92-1),X92) -> -121.2093533
B94: 218800000 | C94: 4.317 | D94: -5.21 | E94: 4.564 | F94: -13.24 | G94: 4.257 | H94: -5.221 | I94: 4.671 | J94: -13.41 | K94: -0.005291 | L94: -1.97 | M94: -0.005135 | N94: -17.72 | O94: -0.1624 | P94: -1.675 | Q94: -0.005135 | R94: -17.72 | S94: 0.9988544034 | T94: -0.03357173167 | U94: -29.67623593 | V94: -91.91000267 | W94: 0.981861223 | X94: -0.02826624156 | Y94: -29.6745454 | Z94: -121.9414451
B95: 223900000 | C95: 4.311 | D95: -5.329 | E95: 4.57 | F95: -13.55 | G95: 4.249 | H95: -5.341 | I95: 4.682 | J95: -13.73 | K95: -0.00554 | L95: -2.016 | M95: -0.005377 | N95: -18.13 | O95: -0.1697 | P95: -1.699 | Q95: -0.005377 | R95: -18.13 | S95: 0.9988003599 | T95: -0.03435527827 | U95: -29.47547099 | V95: -91.95439401 | W95: 0.9810573376 | X95: -0.02868866347 | Y95: -29.47692578 | Z95: -122.6887628
B96: 229100000 | C96: 4.305 | D96: -5.451 | E96: 4.576 | F96: -13.87 | G96: 4.239 | H96: -5.463 | I96: 4.693 | J96: -14.07 | K96: -0.0058 | L96: -2.063 | M96: -0.00563 | N96: -18.56 | O96: -0.1773 | P96: -1.724 | Q96: -0.00563 | R96: -18.56 | S96: 0.9987438242 | T96: -0.0351561476 | U96: -29.27483841 | V96: -91.99987901 | W96: 0.9802210677 | X96: -0.02907515898 | Y96: -29.27432544 | Z96: -123.43614
B97: 234400000 | C97: 4.299 | D97: -5.576 | E97: 4.582 | F97: -14.2 | G97: 4.23 | H97: -5.588 | I97: 4.705 | J97: -14.41 | K97: -0.006072 | L97: -2.111 | M97: -0.005895 | N97: -18.99 | O97: -0.1853 | P97: -1.748 | Q97: -0.005895 | R97: -18.99 | S97: 0.9986847548 | T97: -0.03597433312 | U97: -29.0744332 | V97: -92.0463836 | W97: 0.9793509982 | X97: -0.02947705514 | Y97: -29.07780932 | Z97: -124.226244
B98: 239900000 | C98: 4.292 | D98: -5.703 | E98: 4.589 | F98: -14.54 | G98: 4.22 | H98: -5.716 | I98: 4.718 | J98: -14.76 | K98: -0.006358 | L98: -2.16 | M98: -0.006172 | N98: -19.43 | O98: -0.1936 | P98: -1.771 | Q98: -0.006172 | R98: -19.43 | S98: 0.998622994 | T98: -0.03680982386 | U98: -28.8743437 | V98: -92.09383872 | W98: 0.978436976 | X98: -0.02985976759 | Y98: -28.87636992 | Z98: -125.0116658
B99: 245500000 | C99: 4.285 | D99: -5.833 | E99: 4.596 | F99: -14.89 | G99: 4.209 | H99: -5.846 | I99: 4.731 | J99: -15.12 | K99: -0.006656 | L99: -2.21 | M99: -0.006463 | N99: -19.88 | O99: -0.2022 | P99: -1.794 | Q99: -0.006463 | R99: -19.88 | S99: 0.9985582686 | T99: -0.03766260386 | U99: -28.67465191 | V99: -92.14235909 | W99: 0.977490401 | X99: -0.03022364026 | Y99: -28.6755788 | Z99: -125.834672
B100: 251200000 | C100: 4.278 | D100: -5.966 | E100: 4.604 | F100: -15.24 | G100: 4.198 | H100: -5.979 | I100: 4.744 | J100: -15.49 | K100: -0.006969 | L100: -2.261 | M100: -0.006767 | N100: -20.35 | O100: -0.2112 | P100: -1.816 | Q100: -0.006767 | R100: -20.35 | S100: 0.9984907642 | T100: -0.03853267387 | U100: -28.47543378 | V100: -92.1922226 | W100: 0.9765108562 | X100: -0.03058572933 | Y100: -28.47665636 | Z100: -126.6775602
B101: 257000000 | C101: 4.27 | D101: -6.101 | E101: 4.611 | F101: -15.6 | G101: 4.186 | H101: -6.115 | I101: 4.758 | J101: -15.88 | K101: -0.007297 | L101: -2.314 | M101: -0.007085 | N101: -20.82 | O101: -0.2205 | P101: -1.837 | Q101: -0.007085 | R101: -20.82 | S101: 0.9984200909 | T101: -0.03942001246 | U101: -28.27675963 | V101: -92.24299673 | W101: 0.9754877517 | X101: -0.03092861661 | Y101: -28.27622822 | Z101: -127.5234421
B102: 263000000 | C102: 4.262 | D102: -6.24 | E102: 4.62 | F102: -15.97 | G102: 4.173 | H102: -6.254 | I102: 4.773 | J102: -16.27 | K102: -0.007639 | L102: -2.368 | M102: -0.007419 | N102: -21.31 | O102: -0.2302 | P102: -1.857 | Q102: -0.007419 | R102: -21.31 | S102: 0.9983454986 | T102: -0.04034203507 | U102: -28.07869432 | V102: -92.2951211 | W102: 0.9744324647 | X102: -0.03125266924 | Y102: -28.07591564 | Z102: -128.3983261
B103: 269200000 | C103: 4.254 | D103: -6.381 | E103: 4.628 | F103: -16.36 | G103: 4.16 | H103: -6.396 | I103: 4.789 | J103: -16.67 | K103: -0.007998 | L103: -2.423 | M103: -0.007768 | N103: -21.8 | O103: -0.2404 | P103: -1.875 | Q103: -0.007768 | R103: -21.8 | S103: 0.998267727 | T103: -0.04128131003 | U103: -27.87754537 | V103: -92.34848966 | W103: 0.9733339146 | X103: -0.03155754673 | Y103: -27.87698322 | Z103: -129.2862985
B104: 275400000 | C104: 4.245 | D104: -6.525 | E104: 4.637 | F104: -16.75 | G104: 4.146 | H104: -6.541 | I104: 4.805 | J104: -17.08 | K104: -0.008373 | L104: -2.479 | M104: -0.008133 | N104: -22.31 | O104: -0.2509 | P104: -1.893 | Q104: -0.008133 | R104: -22.31 | S104: 0.9981863825 | T104: -0.0422378133 | U104: -27.67728997 | V104: -92.40287283 | W104: 0.9721816311 | X104: -0.03182593131 | Y104: -27.67776944 | Z104: -130.1977659
B105: 281800000 | C105: 4.235 | D105: -6.673 | E105: 4.646 | F105: -17.15 | G105: 4.132 | H105: -6.688 | I105: 4.822 | J105: -17.51 | K105: -0.008766 | L105: -2.537 | M105: -0.008516 | N105: -22.83 | O105: -0.2618 | P105: -1.909 | Q105: -0.008516 | R105: -22.83 | S105: 0.9981015308 | T105: -0.04321153912 | U105: -27.47797179 | V105: -92.45866979 | W105: 0.9709970781 | X105: -0.03209253085 | Y105: -27.47935832 | Z105: -131.1560149
B106: 288400000 | C106: 4.226 | D106: -6.823 | E106: 4.656 | F106: -17.56 | G106: 4.117 | H106: -6.839 | I106: 4.839 | J106: -17.95 | K106: -0.009178 | L106: -2.596 | M106: -0.008917 | N106: -23.36 | O106: -0.2732 | P106: -1.924 | Q106: -0.008917 | R106: -23.36 | S106: 0.9980121198 | T106: -0.04421988516 | U106: -27.27963052 | V106: -92.51563291 | W106: 0.969770341 | X106: -0.03232309514 | Y106: -27.27902998 | Z106: -132.1050074
B107: 295100000 | C107: 4.216 | D107: -6.977 | E107: 4.666 | F107: -17.98 | G107: 4.101 | H107: -6.992 | I107: 4.858 | J107: -18.4 | K107: -0.009609 | L107: -2.656 | M107: -0.009337 | N107: -23.91 | O107: -0.285 | P107: -1.937 | Q107: -0.009337 | R107: -23.91 | S107: 0.9979187199 | T107: -0.0452454126 | U107: -27.07887998 | V107: -92.57396668 | W107: 0.9684898938 | X107: -0.03253425093 | Y107: -27.08050977 | Z107: -133.083213
B108: 302000000 | C108: 4.205 | D108: -7.134 | E108: 4.677 | F108: -18.41 | G108: 4.084 | H108: -7.148 | I108: 4.877 | J108: -18.86 | K108: -0.01006 | L108: -2.718 | M108: -0.009776 | N108: -24.46 | O108: -0.2973 | P108: -1.947 | Q108: -0.009776 | R108: -24.46 | S108: 0.997821278 | T108: -0.04628810873 | U108: -26.87932906 | V108: -92.63373802 | W108: 0.9671676725 | X108: -0.03270952656 | Y108: -26.87957212 | Z108: -134.0838511
B109: 309000000 | C109: 4.194 | D109: -7.294 | E109: 4.688 | F109: -18.86 | G109: 4.066 | H109: -7.308 | I109: 4.897 | J109: -19.33 | K109: -0.01053 | L109: -2.781 | M109: -0.01024 | N109: -25.03 | O109: -0.31 | P109: -1.956 | Q109: -0.01024 | R109: -25.03 | S109: 0.9977187991 | T109: -0.04736536852 | U109: -26.68100027 | V109: -92.69485 | W109: 0.96579333 | X109: -0.03283180295 | Y109: -26.67991026 | Z109: -135.1073507
B110: 316200000 | C110: 4.182 | D110: -7.457 | E110: 4.7 | F110: -19.31 | G110: 4.047 | H110: -7.47 | I110: 4.918 | J110: -19.82 | K110: -0.01103 | L110: -2.846 | M110: -0.01072 | N110: -25.61 | O110: -0.3232 | P110: -1.963 | Q110: -0.01072 | R110: -25.61 | S110: 0.997612132 | T110: -0.04845976652 | U110: -26.48071954 | V110: -92.75733666 | W110: 0.9643770737 | X110: -0.03293531769 | Y110: -26.48199142 | Z110: -136.1748931
B111: 323600000 | C111: 4.169 | D111: -7.623 | E111: 4.712 | F111: -19.78 | G111: 4.027 | H111: -7.635 | I111: 4.94 | J111: -20.33 | K111: -0.01154 | L111: -2.912 | M111: -0.01122 | N111: -26.21 | O111: -0.3369 | P111: -1.967 | Q111: -0.01122 | R111: -26.21 | S111: 0.9974990919 | T111: -0.04958863553 | U111: -26.28184154 | V111: -92.8209832 | W111: 0.9629085921 | X111: -0.03300294542 | Y111: -26.28243721 | Z111: -137.2449499
B112: 331100000 | C112: 4.156 | D112: -7.793 | E112: 4.724 | F112: -20.25 | G112: 4.007 | H112: -7.803 | I112: 4.963 | J112: -20.84 | K112: -0.01208 | L112: -2.979 | M112: -0.01175 | N112: -26.82 | O112: -0.3511 | P112: -1.968 | Q112: -0.01175 | R112: -26.82 | S112: 0.9973827441 | T112: -0.05073465982 | U112: -26.08132459 | V112: -92.88715704 | W112: 0.9613887189 | X112: -0.03301804954 | Y112: -26.081889 | Z112: -138.3381652
B113: 338800000 | C113: 4.143 | D113: -7.966 | E113: 4.738 | F113: -20.74 | G113: 3.985 | H113: -7.975 | I113: 4.987 | J113: -21.38 | K113: -0.01265 | L113: -3.049 | M113: -0.0123 | N113: -27.45 | O113: -0.3657 | P113: -1.966 | Q113: -0.0123 | R113: -27.45 | S113: 0.9972607332 | T113: -0.05189770835 | U113: -25.88236271 | V113: -92.95310748 | W113: 0.9598177151 | X113: -0.03298086655 | Y113: -25.88208188 | Z113: -139.4649251
B114: 346700000 | C114: 4.128 | D114: -8.142 | E114: 4.752 | F114: -21.25 | G114: 3.961 | H114: -8.148 | I114: 5.012 | J114: -21.93 | K114: -0.01324 | L114: -3.119 | M114: -0.01288 | N114: -28.09 | O114: -0.3809 | P114: -1.961 | Q114: -0.01288 | R114: -28.09 | S114: 0.9971311463 | T114: -0.05311256759 | U114: -25.684954 | V114: -93.02138431 | W114: 0.9582068738 | X114: -0.03289202829 | Y114: -25.68257829 | Z114: -140.6214918
B115: 354800000 | C115: 4.113 | D115: -8.322 | E115: 4.766 | F115: -21.76 | G115: 3.937 | H115: -8.325 | I115: 5.038 | J115: -22.49 | K115: -0.01386 | L115: -3.192 | M115: -0.01349 | N115: -28.74 | O115: -0.3966 | P115: -1.952 | Q115: -0.01349 | R115: -28.74 | S115: 0.9969977883 | T115: -0.0543270628 | U115: -25.48340164 | V115: -93.09180361 | W115: 0.9565343737 | X115: -0.03275104549 | Y115: -25.48435998 | Z115: -141.796545
B116: 363100000 | C116: 4.098 | D116: -8.505 | E116: 4.781 | F116: -22.29 | G116: 3.911 | H116: -8.504 | I116: 5.065 | J116: -23.08 | K116: -0.01451 | L116: -3.266 | M116: -0.01412 | N116: -29.41 | O116: -0.4128 | P116: -1.939 | Q116: -0.01412 | R116: -29.41 | S116: 0.9968566032 | T116: -0.05559331523 | U116: -25.28643292 | V116: -93.1630511 | W116: 0.9548120948 | X116: -0.03254191936 | Y116: -25.28430832 | Z116: -143.0022308
B117: 371500000 | C117: 4.081 | D117: -8.691 | E117: 4.797 | F117: -22.84 | G117: 3.884 | H117: -8.686 | I117: 5.093 | J117: -23.68 | K117: -0.01519 | L117: -3.342 | M117: -0.01478 | N117: -30.09 | O117: -0.4295 | P117: -1.922 | Q117: -0.01478 | R117: -30.09 | S117: 0.9967093801 | T117: -0.05687649586 | U117: -25.08568595 | V117: -93.23621284 | W117: 0.9530402855 | X117: -0.03226504504 | Y117: -25.08508977 | Z117: -144.2405787
B118: 380200000 | C118: 4.063 | D118: -8.881 | E118: 4.814 | F118: -23.4 | G118: 3.855 | H118: -8.87 | I118: 5.123 | J118: -24.3 | K118: -0.0159 | L118: -3.419 | M118: -0.01548 | N118: -30.79 | O118: -0.4467 | P118: -1.9 | Q118: -0.01548 | R118: -30.79 | S118: 0.9965550382 | T118: -0.05819397476 | U118: -24.88683066 | V118: -93.31118662 | W118: 0.9512191878 | X118: -0.03192083896 | Y118: -24.88618316 | Z118: -145.5078504
B119: 389000000 | C119: 4.045 | D119: -9.074 | E119: 4.831 | F119: -23.97 | G119: 3.825 | H119: -9.056 | I119: 5.153 | J119: -24.94 | K119: -0.01665 | L119: -3.499 | M119: -0.01621 | N119: -31.51 | O119: -0.4644 | P119: -1.874 | Q119: -0.01621 | R119: -31.51 | S119: 0.9963944808 | T119: -0.05952832948 | U119: -24.68724679 | V119: -93.38783679 | W119: 0.9493495878 | X119: -0.03149316938 | Y119: -24.68711755 | Z119: -146.8003537
B120: 398100000 | C120: 4.026 | D120: -9.27 | E120: 4.849 | F120: -24.56 | G120: 3.793 | H120: -9.244 | I120: 5.185 | J120: -25.6 | K120: -0.01742 | L120: -3.58 | M120: -0.01697 | N120: -32.25 | O120: -0.4827 | P120: -1.842 | Q120: -0.01697 | R120: -32.25 | S120: 0.9962243677 | T120: -0.06091424017 | U120: -24.48962316 | V120: -93.46606355 | W120: 0.9474311491 | X120: -0.03099913092 | Y120: -24.48881464 | Z120: -148.1276765
B121: 407400000 | C121: 4.006 | D121: -9.47 | E121: 4.868 | F121: -25.16 | G121: 3.759 | H121: -9.434 | I121: 5.218 | J121: -26.28 | K121: -0.01824 | L121: -3.663 | M121: -0.01776 | N121: -33 | O121: -0.5014 | P121: -1.804 | Q121: -0.01776 | R121: -33 | S121: 0.9960489535 | T121: -0.06231703322 | U121: -24.28897035 | V121: -93.54681267 | W121: 0.9454542698 | X121: -0.03040585216 | Y121: -24.2894016 | Z121: -149.4727298
B122: 416900000 | C122: 3.984 | D122: -9.672 | E122: 4.887 | F122: -25.78 | G122: 3.723 | H122: -9.626 | I122: 5.253 | J122: -26.98 | K122: -0.01909 | L122: -3.748 | M122: -0.0186 | N122: -33.76 | O122: -0.5206 | P122: -1.76 | Q122: -0.0186 | R122: -33.76 | S122: 0.9958636146 | T122: -0.06375384801 | U122: -24.09044159 | V122: -93.62783123 | W122: 0.9434408898 | X122: -0.02971475419 | Y122: -24.08962951 | Z122: -150.8630519
B123: 426600000 | C123: 3.962 | D123: -9.878 | E123: 4.908 | F123: -26.42 | G123: 3.685 | H123: -9.818 | I123: 5.288 | J123: -27.7 | K123: -0.01998 | L123: -3.835 | M123: -0.01947 | N123: -34.55 | O123: -0.5403 | P123: -1.71 | Q123: -0.01947 | R123: -34.55 | S123: 0.9956704971 | T123: -0.06522478752 | U123: -23.89162875 | V123: -93.7121793 | W123: 0.9413802255 | X123: -0.0289262233 | Y123: -23.89137685 | Z123: -152.2836771
B124: 436500000 | C124: 3.938 | D124: -10.09 | E124: 4.929 | F124: -27.08 | G124: 3.645 | H124: -10.01 | I124: 5.326 | J124: -28.45 | K124: -0.02092 | L124: -3.924 | M124: -0.02039 | N124: -35.36 | O124: -0.5604 | P124: -1.652 | Q124: -0.02039 | R124: -35.36 | S124: 0.9954683037 | T124: -0.0667297363 | U124: -23.69265328 | V124: -93.79761877 | W124: 0.939272379 | X124: -0.02804103263 | Y124: -23.69266664 | Z124: -153.7357323
B125: 446700000 | C125: 3.913 | D125: -10.3 | E125: 4.952 | F125: -27.75 | G125: 3.603 | H125: -10.2 | I125: 5.364 | J125: -29.23 | K125: -0.02189 | L125: -4.015 | M125: -0.02134 | N125: -36.18 | O125: -0.5809 | P125: -1.587 | Q125: -0.02134 | R125: -36.18 | S125: =10^(K124/20)*COS(PI()/180*L124) -> 0.9952557347 | T125: =10^(K124/20)*SIN(PI()/180*L124) -> -0.06826857041 | U125: =10*LOG((S124-1)^2+T124^2) -> -23.49362851 | V125: =180/PI()*ATAN2((S124-1),T124) -> -93.88505978 | W125: =10^(O124/20)*COS(PI()/180*P124) -> 0.9371291636 | X125: =10^(O124/20)*SIN(PI()/180*P124) -> -0.02702758458 | Y125: =10*LOG((W124-1)^2+X124^2) -> -23.49290095 | Z125: =180/PI()*ATAN2((W124-1),X124) -> -155.2148267
B126: 457100000 | C126: 3.887 | D126: -10.51 | E126: 4.975 | F126: -28.45 | G126: 3.558 | H126: -10.4 | I126: 5.405 | J126: -30.03 | K126: -0.02292 | L126: -4.108 | M126: -0.02235 | N126: -37.02 | O126: -0.6018 | P126: -1.513 | Q126: -0.02235 | R126: -37.02 | S126: 0.9950349248 | T126: -0.06984139818 | U126: -23.29466034 | V126: -93.97532937 | W126: 0.9349499944 | X126: -0.02590322042 | Y126: -23.29454291 | Z126: -156.7375831
B127: 467700000 | C127: 3.86 | D127: -10.73 | E127: 4.999 | F127: -29.16 | G127: 3.511 | H127: -10.59 | I127: 5.446 | J127: -30.86 | K127: -0.02398 | L127: -4.203 | M127: -0.0234 | N127: -37.88 | O127: -0.6231 | P127: -1.431 | Q127: -0.0234 | R127: -37.88 | S127: 0.9948022768 | T127: -0.07144792956 | U127: -23.09584801 | V127: -94.06635703 | W127: 0.9327356176 | X127: -0.0246363191 | Y127: -23.09584164 | Z127: -158.2873186
B128: 478600000 | C128: 3.831 | D128: -10.95 | E128: 5.025 | F128: -29.89 | G128: 3.461 | H128: -10.78 | I128: 5.489 | J128: -31.72 | K128: -0.0251 | L128: -4.301 | M128: -0.02449 | N128: -38.76 | O128: -0.6446 | P128: -1.34 | Q128: -0.02449 | R128: -38.76 | S128: 0.9945610636 | T128: -0.0730883552 | U128: -22.89728334 | V128: -94.16084691 | W128: 0.9304853355 | X128: -0.0232443202 | Y128: -22.89760291 | Z128: -159.8841883
B129: 489800000 | C129: 3.801 | D129: -11.17 | E129: 5.051 | F129: -30.64 | G129: 3.407 | H129: -10.97 | I129: 5.534 | J129: -32.61 | K129: -0.02627 | L129: -4.4 | M129: -0.02564 | N129: -39.67 | O129: -0.6664 | P129: -1.238 | Q129: -0.02564 | R129: -39.67 | S129: 0.994306378 | T129: -0.07477972417 | U129: -22.69905253 | V129: -94.25587311 | W129: 0.9282206287 | X129: -0.02171263712 | Y129: -22.69816543 | Z129: -161.5110906
B130: 501200000 | C130: 3.769 | D130: -11.4 | E130: 5.079 | F130: -31.42 | G130: 3.351 | H130: -11.15 | I130: 5.58 | J130: -33.53 | K130: -0.0275 | L130: -4.502 | M130: -0.02685 | N130: -40.59 | O130: -0.6884 | P130: -1.126 | Q130: -0.02685 | R130: -40.59 | S130: 0.9940417761 | T130: -0.07648734614 | U130: -22.4992191 | V130: -94.35401869 | W130: 0.9259309747 | X130: -0.02000986776 | Y130: -22.49976561 | Z130: -163.1698894
B131: 512900000 | C131: 3.735 | D131: -11.62 | E131: 5.107 | F131: -32.22 | G131: 3.291 | H131: -11.33 | I131: 5.628 | J131: -34.48 | K131: -0.02878 | L131: -4.607 | M131: -0.02811 | N131: -41.54 | O131: -0.7104 | P131: -1.003 | Q131: -0.02811 | R131: -41.54 | S131: 0.9937632997 | T131: -0.0782457717 | U131: -22.30193426 | V131: -94.45424101 | W131: 0.923625955 | X131: -0.0181538107 | Y131: -22.30134344 | Z131: -164.8823278
B132: 524800000 | C132: 3.7 | D132: -11.85 | E132: 5.137 | F132: -33.04 | G132: 3.228 | H132: -11.5 | I132: 5.677 | J132: -35.47 | K132: -0.03012 | L132: -4.713 | M132: -0.02942 | N132: -42.5 | O132: -0.7325 | P132: -0.8686 | Q132: -0.02942 | R132: -42.5 | S132: 0.9934718239 | T132: -0.08005500745 | U132: -22.1032784 | V132: -94.55721422 | W132: 0.9213262654 | X132: -0.01613006505 | Y132: -22.1023915 | Z132: -166.6291476
B133: 537000000 | C133: 3.663 | D133: -12.08 | E133: 5.168 | F133: -33.89 | G133: 3.161 | H133: -11.67 | I133: 5.728 | J133: -36.49 | K133: -0.03152 | L133: -4.823 | M133: -0.0308 | N133: -43.49 | O133: -0.7545 | P133: -0.7215 | Q133: -0.0308 | R133: -43.49 | S133: 0.993168787 | T133: -0.08188020806 | U133: -21.90344596 | V133: -94.66193376 | W133: 0.9190202747 | X133: -0.01393335035 | Y133: -21.90458094 | Z133: -168.4135113
B134: 549500000 | C134: 3.623 | D134: -12.31 | E134: 5.2 | F134: -34.76 | G134: 3.09 | H134: -11.82 | I134: 5.78 | J134: -37.55 | K134: -0.03298 | L134: -4.934 | M134: -0.03225 | N134: -44.51 | O134: -0.7763 | P134: -0.5614 | Q134: -0.03225 | R134: -44.51 | S134: 0.9928497167 | T134: -0.08377329943 | U134: -21.70629708 | V134: -94.76910536 | W134: 0.916728146 | X134: -0.01154455574 | Y134: -21.70576947 | Z134: -170.2372944
B135: 562300000 | C135: 3.582 | D135: -12.54 | E135: 5.234 | F135: -35.65 | G135: 3.015 | H135: -11.96 | I135: 5.834 | J135: -38.65 | K135: -0.03452 | L135: -5.048 | M135: -0.03376 | N135: -45.54 | O135: -0.7978 | P135: -0.3877 | Q135: -0.03376 | R135: -45.54 | S135: 0.9925187131 | T135: -0.08568220071 | U135: -21.50636351 | V135: -94.87852967 | W135: 0.9144588181 | X135: -0.008960408858 | Y135: -21.50735508 | Z135: -172.1069997
B136: 575400000 | C136: 3.539 | D136: -12.76 | E136: 5.269 | F136: -36.58 | G136: 2.935 | H136: -12.09 | I136: 5.889 | J136: -39.8 | K136: -0.03612 | L136: -5.165 | M136: -0.03534 | N136: -46.6 | O136: -0.8188 | P136: -0.1997 | Q136: -0.03534 | R136: -46.6 | S136: 0.9921703424 | T136: -0.08764127973 | U136: -21.30920358 | V136: -94.99008911 | W136: 0.9122209822 | X136: -0.006172766576 | Y136: -21.3091017 | Z136: -174.020095
B137: 588800000 | C137: 3.493 | D137: -12.99 | E137: 5.305 | F137: -37.53 | G137: 2.851 | H137: -12.2 | I137: 5.946 | J137: -40.98 | K137: -0.0378 | L137: -5.285 | M137: -0.037 | N137: -47.69 | O137: -0.8393 | P137: 0.003107 | Q137: -0.037 | R137: -47.69 | S137: 0.991806593 | T137: -0.08965062661 | U137: -21.11130148 | V137: -95.10511197 | W137: 0.9100334628 | X137: -0.003171863966 | Y137: -21.11076213 | Z137: -175.9774874
B138: 602600000 | C138: 3.445 | D138: -13.22 | E138: 5.343 | F138: -38.51 | G138: 2.762 | H138: -12.3 | I138: 6.003 | J138: -42.22 | K138: -0.03955 | L138: -5.407 | M138: -0.03873 | N138: -48.8 | O138: -0.8589 | P138: 0.2213 | Q138: -0.03873 | R138: -48.8 | S138: 0.9914248769 | T138: -0.09170992335 | U138: -20.91280913 | V138: -95.22190568 | W138: 0.9078936935 | X138: 4.923269624e-05 | Y138: -20.91298503 | Z138: -177.980814
B139: 616600000 | C139: 3.394 | D139: -13.44 | E139: 5.382 | F139: -39.53 | G139: 2.667 | H139: -12.36 | I139: 6.062 | J139: -43.5 | K139: -0.04139 | L139: -5.532 | M139: -0.04054 | N139: -49.93 | O139: -0.8776 | P139: 0.4555 | Q139: -0.04054 | R139: -49.93 | S139: 0.9910276628 | T139: -0.09380185577 | U139: -20.71386913 | V139: -95.34177749 | W139: 0.9058405553 | X139: 0.00349874831 | Y139: -20.71421141 | Z139: 179.9693742
B140: 631000000 | C140: 3.34 | D140: -13.66 | E140: 5.422 | F140: -40.57 | G140: 2.568 | H140: -12.4 | I140: 6.122 | J140: -44.83 | K140: -0.0433 | L140: -5.659 | M140: -0.04244 | N140: -51.09 | O140: -0.8951 | P140: 0.706 | Q140: -0.04244 | R140: -51.09 | S140: 0.9906107895 | T140: -0.09594339119 | U140: -20.51621712 | V140: -95.46383421 | W140: 0.9038706318 | X140: 0.007185900082 | Y140: -20.51673008 | Z140: 177.8719997
B141: 645700000 | C141: 3.284 | D141: -13.87 | E141: 5.464 | F141: -41.65 | G141: 2.463 | H141: -12.41 | I141: 6.183 | J141: -46.22 | K141: -0.04531 | L141: -5.79 | M141: -0.04443 | N141: -52.28 | O141: -0.9112 | P141: 0.9732 | Q141: -0.04443 | R141: -52.28 | S141: 0.9901779301 | T141: -0.09811733196 | U141: -20.31830436 | V141: -95.58928113 | W141: 0.9020114059 | X141: 0.01111516921 | Y141: -20.31867776 | Z141: 175.7249545
B142: 660700000 | C142: 3.225 | D142: -14.08 | E142: 5.507 | F142: -42.77 | G142: 2.353 | H142: -12.37 | I142: 6.244 | J142: -47.66 | K142: -0.04741 | L142: -5.924 | M142: -0.04651 | N142: -53.5 | O142: -0.9257 | P142: 1.258 | Q142: -0.04651 | R142: -53.5 | S142: 0.9897219507 | T142: -0.1003577714 | U142: -20.12178101 | V142: -95.71656943 | W142: 0.9002794732 | X142: 0.01529320763 | Y142: -20.12096477 | Z142: 173.5284132
B143: 676100000 | C143: 3.162 | D143: -14.28 | E143: 5.552 | F143: -43.92 | G143: 2.237 | H143: -12.29 | I143: 6.306 | J143: -49.16 | K143: -0.0496 | L143: -6.061 | M143: -0.04868 | N143: -54.75 | O143: -0.9382 | P143: 1.559 | Q143: -0.04868 | R143: -54.75 | S143: 0.9892453332 | T143: -0.1026473781 | U143: -19.92366545 | V143: -95.84750752 | W143: 0.8986908294 | X143: 0.01973504469 | Y143: -19.92334751 | Z143: 171.2810123
B144: 691800000 | C144: 3.096 | D144: -14.48 | E144: 5.598 | F144: -45.1 | G144: 2.115 | H144: -12.16 | I144: 6.368 | J144: -50.72 | K144: -0.05189 | L144: -6.2 | M144: -0.05096 | N144: -56.02 | O144: -0.9486 | P144: 1.878 | Q144: -0.05096 | R144: -56.02 | S144: 0.9887477378 | T144: -0.1049859942 | U144: -19.72562845 | V144: -95.98122451 | W144: 0.8972825287 | X144: 0.02442080028 | Y144: -19.72527256 | Z144: 168.9768208
B145: 707900000 | C145: 3.027 | D145: -14.66 | E145: 5.646 | F145: -46.33 | G145: 1.989 | H145: -11.97 | I145: 6.43 | J145: -52.34 | K145: -0.05429 | L145: -6.343 | M145: -0.05334 | N145: -57.32 | O145: -0.9564 | P145: 2.213 | Q145: -0.05334 | R145: -57.32 | S145: 0.9882295545 | T145: -0.1073560848 | U145: -19.52776846 | V145: -96.11753381 | W145: 0.8960591233 | X145: 0.02938090633 | Y145: -19.52832088 | Z145: 166.6263702
B146: 724400000 | C146: 2.955 | D146: -14.82 | E146: 5.695 | F146: -47.6 | G146: 1.857 | H146: -11.72 | I146: 6.491 | J146: -54.03 | K146: -0.05679 | L146: -6.49 | M146: -0.05584 | N146: -58.66 | O146: -0.9614 | P146: 2.566 | Q146: -0.05584 | R146: -58.66 | S146: 0.98768559 | T146: -0.109791851 | U146: -19.33157243 | V146: -96.25687795 | W146: 0.895067883 | X146: 0.03458842561 | Y146: -19.33042905 | Z146: 164.2160253
B147: 741300000 | C147: 2.878 | D147: -14.98 | E147: 5.746 | F147: -48.91 | G147: 1.722 | H147: -11.38 | I147: 6.551 | J147: -55.79 | K147: -0.05941 | L147: -6.639 | M147: -0.05845 | N147: -60.02 | O147: -0.9633 | P147: 2.935 | Q147: -0.05845 | R147: -60.02 | S147: 0.987116498 | T147: -0.1122932013 | U147: -19.13430362 | V147: -96.39962933 | W147: 0.8943228354 | X147: 0.0400791804 | Y147: -19.133872 | Z147: 161.7564011
B148: 758600000 | C148: 2.798 | D148: -15.11 | E148: 5.798 | F148: -50.27 | G148: 1.582 | H148: -10.95 | I148: 6.61 | J148: -57.61 | K148: -0.06215 | L148: -6.792 | M148: -0.06118 | N148: -61.42 | O148: -0.9616 | P148: 3.319 | Q148: -0.06118 | R148: -61.42 | S148: 0.986523519 | T148: -0.1148252143 | U148: -18.93613674 | V148: -96.54497987 | W148: 0.8938506225 | X148: 0.04582795965 | Y148: -18.93672958 | Z148: 159.2302392
B149: 776200000 | C149: 2.715 | D149: -15.23 | E149: 5.851 | F149: -51.67 | G149: 1.441 | H149: -10.43 | I149: 6.667 | J149: -59.51 | K149: -0.06502 | L149: -6.949 | M149: -0.06403 | N149: -62.85 | O149: -0.9561 | P149: 3.718 | Q149: -0.06403 | R149: -62.85 | S149: 0.985902322 | T149: -0.1174221214 | U149: -18.73984072 | V149: -96.69390586 | W149: 0.8936983054 | X149: 0.05182767264 | Y149: -18.73937064 | Z149: 156.6486532
B150: 794300000 | C150: 2.627 | D150: -15.32 | E150: 5.906 | F150: -53.12 | G150: 1.299 | H150: -9.8 | I150: 6.721 | J150: -61.48 | K150: -0.06801 | L150: -7.108 | M150: -0.06702 | N150: -64.31 | O150: -0.9464 | P150: 4.13 | Q150: -0.06702 | R150: -64.31 | S150: 0.9852512634 | T150: -0.1200835295 | U150: -18.54284767 | V150: -96.84615181 | W150: 0.8938815538 | X150: 0.05808672834 | Y150: -18.54301572 | Z150: 154.0083292
B151: 812800000 | C151: 2.535 | D151: -15.38 | E151: 5.962 | F151: -54.63 | G151: 1.158 | H151: -9.048 | I151: 6.773 | J151: -63.53 | K151: -0.07114 | L151: -7.272 | M151: -0.07015 | N151: -65.81 | O151: -0.932 | P151: 4.554 | Q151: -0.07015 | R151: -65.81 | S151: 0.9845752444 | T151: -0.1227749374 | U151: -18.3453074 | V151: -97.00203678 | W151: 0.8944390707 | X151: 0.06458494104 | Y151: -18.34601557 | Z151: 151.3047458
B152: 831800000 | C152: 2.439 | D152: -15.41 | E152: 6.019 | F152: -56.19 | G152: 1.02 | H152: -8.169 | I152: 6.82 | J152: -65.66 | K152: -0.07441 | L152: -7.439 | M152: -0.07342 | N152: -67.34 | O152: -0.9127 | P152: 4.987 | Q152: -0.07342 | R152: -67.34 | S152: 0.9838651838 | T152: -0.1255473699 | U152: -18.14979189 | V152: -97.16080278 | W152: 0.895419895 | X152: 0.07132027783 | Y152: -18.14902157 | Z152: 148.5406134
B153: 851100000 | C153: 2.34 | D153: -15.4 | E153: 6.077 | F153: -57.8 | G153: 0.8901 | H153: -7.153 | I153: 6.862 | J153: -67.86 | K153: -0.07782 | L153: -7.61 | M153: -0.07684 | N153: -68.9 | O153: -0.888 | P153: 5.427 | Q153: -0.07684 | R153: -68.9 | S153: 0.9831248829 | T153: -0.1283661688 | U153: -17.95270414 | V153: -97.32326918 | W153: 0.8968459179 | X153: 0.07825880938 | Y153: -17.95240436 | Z153: 145.7072663
B154: 871000000 | C154: 2.236 | D154: -15.35 | E154: 6.136 | F154: -59.47 | G154: 0.7701 | H154: -5.998 | I154: 6.899 | J154: -70.14 | K154: -0.08139 | L154: -7.785 | M154: -0.08043 | N154: -70.51 | O154: -0.8576 | P154: 5.872 | Q154: -0.08043 | R154: -70.51 | S154: 0.9823516566 | T154: -0.1312482048 | U154: -17.75657507 | V154: -97.48920246 | W154: 0.8987706912 | X154: 0.08538618345 | Y154: -17.75591108 | Z154: 142.8138875
B155: 891300000 | C155: 2.129 | D155: -15.26 | E155: 6.195 | F155: -61.2 | G155: 0.6645 | H155: -4.705 | I155: 6.93 | J155: -72.5 | K155: -0.08513 | L155: -7.964 | M155: -0.08417 | N155: -72.15 | O155: -0.8212 | P155: 6.319 | Q155: -0.08417 | R155: -72.15 | S155: 0.981542692 | T155: -0.1341928442 | U155: -17.56030947 | V155: -97.65836403 | W155: 0.901229145 | X155: 0.09268786788 | Y155: -17.56015643 | Z155: 139.8526129
B156: 912000000 | C156: 2.02 | D156: -15.11 | E156: 6.255 | F156: -62.99 | G156: 0.5778 | H156: -3.278 | I156: 6.954 | J156: -74.94 | K156: -0.08903 | L156: -8.146 | M156: -0.08809 | N156: -73.82 | O156: -0.7786 | P156: 6.764 | Q156: -0.08809 | R156: -73.82 | S156: 0.980696303 | T156: -0.1371995719 | U156: -17.36401998 | V156: -97.83150355 | W156: 0.9042601682 | X156: 0.100134782 | Y156: -17.36441504 | Z156: 136.8197776
B157: 933300000 | C157: 1.907 | D157: -14.9 | E157: 6.314 | F157: -64.85 | G157: 0.5144 | H157: -1.733 | I157: 6.969 | J157: -77.45 | K157: -0.0931 | L157: -8.333 | M157: -0.0922 | N157: -75.54 | O157: -0.7294 | P157: 7.204 | Q157: -0.0922 | R157: -75.54 | S157: =10^(K156/20)*COS(PI()/180*L156) -> 0.9798155018 | T157: =10^(K156/20)*SIN(PI()/180*L156) -> -0.1402510681 | U157: =10*LOG((S156-1)^2+T156^2) -> -17.16781221 | V157: =180/PI()*ATAN2((S156-1),T156) -> -98.00882686 | W157: =10^(O156/20)*COS(PI()/180*P156) -> 0.9078970699 | X157: =10^(O156/20)*SIN(PI()/180*P156) -> 0.1076816548 | Y157: =10*LOG((W156-1)^2+X156^2) -> -17.16855101 | Z157: =180/PI()*ATAN2((W156-1),X156) -> 133.7146376
B158: 955000000 | C158: 1.793 | D158: -14.62 | E158: 6.374 | F158: -66.78 | G158: 0.4786 | H158: -0.08988 | I158: 6.976 | J158: -80.03 | K158: -0.09737 | L158: -8.524 | M158: -0.09649 | N158: -77.3 | O158: -0.6735 | P158: 7.634 | Q158: -0.09649 | R158: -77.3 | S158: 0.9788937437 | T158: -0.1433810031 | U158: -16.97284394 | V158: -98.18959843 | W158: 0.9121957696 | X158: 0.1153018248 | Y158: -16.97273309 | Z158: 130.5412346
B159: 977200000 | C159: 1.678 | D159: -14.27 | E159: 6.433 | F159: -68.78 | G159: 0.4741 | H159: 1.622 | I159: 6.972 | J159: -82.69 | K159: -0.1018 | L159: -8.72 | M159: -0.101 | N159: -79.1 | O159: -0.6108 | P159: 8.05 | Q159: -0.101 | R159: -79.1 | S159: 0.9779294635 | T159: -0.1465713474 | U159: -16.77706549 | V159: -98.37402751 | W159: 0.9171885783 | X159: 0.122933089 | Y159: -16.77696053 | Z159: 127.2898668
B160: 1000000000 | C160: 1.563 | D160: -13.84 | E160: 6.492 | F160: -70.85 | G160: 0.5038 | H160: 3.366 | I160: 6.958 | J160: -85.4 | K160: -0.1065 | L160: -8.919 | M160: -0.1057 | N160: -80.94 | O160: -0.541 | P160: 8.448 | Q160: -0.1057 | R160: -80.94 | S160: 0.9769239642 | T160: -0.1498393877 | U160: -16.58164636 | V160: -98.5631955 | W160: 0.9229099809 | X160: 0.1305279388 | Y160: -16.58164488 | Z160: 123.9653919
B161: 1023000000 | C161: 1.449 | D161: -13.32 | E161: 6.549 | F161: -72.99 | G161: 0.5689 | H161: 5.102 | I161: 6.933 | J161: -88.17 | K161: -0.1113 | L161: -9.123 | M161: -0.1106 | N161: -82.82 | O161: -0.4644 | P161: 8.822 | Q161: -0.1106 | R161: -82.82 | S161: 0.9758694567 | T161: -0.1531486422 | U161: -16.38567858 | V161: -98.75506064 | W161: 0.9294199305 | X161: 0.1380405008 | Y161: -16.38642154 | Z161: 120.5661699
B162: 1047000000 | C162: 1.339 | D162: -12.71 | E162: 6.604 | F162: -75.21 | G162: 0.6695 | H162: 6.785 | I162: 6.895 | J162: -91 | K162: -0.1164 | L162: -9.332 | M162: -0.1157 | N162: -84.74 | O162: -0.3808 | P162: 9.168 | Q162: -0.1157 | R162: -84.74 | S162: 0.9747791592 | T162: -0.156535691 | U162: -16.19123536 | V162: -98.95407494 | W162: 0.9367236264 | X162: 0.1453807967 | Y162: -16.19124686 | Z162: 117.0806478
B163: 1072000000 | C163: 1.235 | D163: -12.01 | E163: 6.657 | F163: -77.51 | G163: 0.8038 | H163: 8.375 | I163: 6.845 | J163: -93.87 | K163: -0.1217 | L163: -9.545 | M163: -0.1211 | N163: -86.71 | O163: -0.2906 | P163: 9.48 | Q163: -0.1211 | R163: -86.71 | S163: 0.9736298305 | T163: -0.1599964098 | U163: -15.99643133 | V163: -99.15276776 | W163: 0.9448792747 | X163: 0.152495534 | Y163: -15.99643787 | Z163: 113.5208791
B164: 1096000000 | C164: 1.139 | D164: -11.2 | E164: 6.707 | F164: -79.9 | G164: 0.9686 | H164: 9.831 | I164: 6.782 | J164: -96.78 | K164: -0.1273 | L164: -9.763 | M164: -0.1267 | N164: -88.73 | O164: -0.1938 | P164: 9.753 | Q164: -0.1267 | R164: -88.73 | S164: 0.9724347629 | T164: -0.1635150099 | U164: -15.80139427 | V164: -99.35919192 | W164: 0.9538894259 | X164: 0.1592840707 | Y164: -15.80156848 | Z164: 109.8727931
B165: 1122000000 | C165: 1.053 | D165: -10.3 | E165: 6.753 | F165: -82.36 | G165: 1.159 | H165: 11.12 | I165: 6.706 | J165: -99.71 | K165: -0.1331 | L165: -9.986 | M165: -0.1326 | N165: -90.79 | O165: -0.09097 | P165: 9.982 | Q165: -0.1326 | R165: -90.79 | S165: 0.9711792366 | T165: -0.1671059825 | U165: -15.60714674 | V165: -99.56891005 | W165: 0.9638011147 | X165: 0.1656632757 | Y165: -15.60705206 | Z165: 106.1450116
B166: 1148000000 | C166: 0.9807 | D166: -9.298 | E166: 6.796 | F166: -84.9 | G166: 1.371 | H166: 12.23 | I166: 6.616 | J166: -102.7 | K166: -0.1391 | L166: -10.21 | M166: -0.1387 | N166: -92.9 | O166: 0.01764 | P166: 10.16 | Q166: -0.1387 | R166: -92.9 | S166: 0.9698736427 | T166: -0.1707705486 | U166: -15.41285936 | V166: -99.78553267 | W166: 0.9746013183 | X166: 0.1715328258 | Y166: -15.41291458 | Z166: 102.3258985
B167: 1175000000 | C167: 0.9254 | D167: -8.211 | E167: 6.833 | F167: -87.53 | G167: 1.598 | H167: 13.14 | I167: 6.514 | J167: -105.6 | K167: -0.1455 | L167: -10.45 | M167: -0.1452 | N167: -95.06 | O167: 0.1315 | P167: 10.29 | Q167: -0.1452 | R167: -95.06 | S167: 0.968529331 | T167: -0.1744404505 | U167: -15.21864006 | V167: -100.004849 | W167: 0.9863200617 | X167: 0.1767562055 | Y167: -15.21886744 | Z167: 98.42252748
B168: 1202000000 | C168: 0.8898 | D168: -7.049 | E168: 6.865 | F168: -90.24 | G168: 1.836 | H168: 13.84 | I168: 6.399 | J168: -108.6 | K168: -0.1521 | L168: -10.68 | M168: -0.1519 | N168: -97.27 | O168: 0.2499 | P168: 10.35 | Q168: -0.1519 | R168: -97.27 | S168: 0.9670773104 | T168: -0.1783644022 | U168: -15.02795564 | V168: -100.2266839 | W168: 0.9989255568 | X168: 0.181355443 | Y168: -15.02657044 | Z168: 94.42554967
B169: 1230000000 | C169: 0.8769 | D169: -5.831 | E169: 6.89 | F169: -93.04 | G169: 2.078 | H169: 14.34 | I169: 6.273 | J169: -111.5 | K169: -0.159 | L169: -10.93 | M169: -0.1589 | N169: -99.53 | O169: 0.3724 | P169: 10.36 | Q169: -0.1589 | R169: -99.53 | S169: 0.965619512 | T169: -0.182106625 | U169: -14.82833626 | V169: -100.458007 | W169: 1.012442367 | X169: 0.1849048084 | Y169: -14.82923567 | Z169: 90.33944579
B170: 1259000000 | C170: 0.889 | D170: -4.578 | E170: 6.908 | F170: -95.91 | G170: 2.32 | H170: 14.64 | I170: 6.136 | J170: -114.5 | K170: -0.1662 | L170: -11.18 | M170: -0.1663 | N170: -101.8 | O170: 0.498 | P170: 10.29 | Q170: -0.1663 | R170: -101.8 | S170: 0.9640495951 | T170: -0.1861702372 | U170: -14.64138492 | V170: -100.6912156 | W170: 1.026789598 | X170: 0.1877102699 | Y170: -14.64141529 | Z170: 86.15033244
B171: 1288000000 | C171: 0.9278 | D171: -3.319 | E171: 6.918 | F171: -98.86 | G171: 2.559 | H171: 14.76 | I171: 5.988 | J171: -117.4 | K171: -0.1738 | L171: -11.43 | M171: -0.174 | N171: -104.2 | O171: 0.626 | P171: 10.16 | Q171: -0.174 | R171: -104.2 | S171: 0.9624299813 | T171: -0.1902171693 | U171: -14.44279496 | V171: -100.9295741 | W171: 1.04197698 | X171: 0.1891714508 | Y171: -14.44266943 | Z171: 81.87772142
B172: 1318000000 | C172: 0.994 | D172: -2.083 | E172: 6.919 | F172: -101.9 | G172: 2.791 | H172: 14.71 | I172: 5.832 | J172: -120.3 | K172: -0.1817 | L172: -11.69 | M172: -0.182 | N172: -106.6 | O172: 0.7556 | P172: 9.945 | Q172: -0.182 | R172: -106.6 | S172: 0.9607498363 | T172: -0.1942447032 | U172: -14.24880564 | V172: -101.1727531 | W172: 1.057878685 | X172: 0.1895800658 | Y172: -14.25414294 | Z172: 77.48883427
B173: 1349000000 | C173: 1.088 | D173: -0.9015 | E173: 6.91 | F173: -105 | G173: 3.014 | H173: 14.52 | I173: 5.668 | J173: -123.1 | K173: -0.1899 | L173: -11.95 | M173: -0.1904 | N173: -109.1 | O173: 0.8856 | P173: 9.655 | Q173: -0.1904 | R173: -109.1 | S173: 0.9589858782 | T173: -0.1984218817 | U173: -14.05921625 | V173: -101.4236829 | W173: 1.074495899 | X173: 0.1883992865 | Y173: -14.05711963 | Z173: 73.02259973
B174: 1380000000 | C174: 1.207 | D174: 0.1939 | E174: 6.892 | F174: -108.1 | G174: 3.226 | H174: 14.18 | I174: 5.498 | J174: -126 | K174: -0.1986 | L174: -12.22 | M174: -0.1992 | N174: -111.6 | O174: 1.015 | P174: 9.286 | Q174: -0.1992 | R174: -111.6 | S174: 0.9571715436 | T174: -0.2025802256 | U174: -13.86650855 | V174: -101.6786577 | W174: 1.091652595 | X174: 0.1857172805 | Y174: -13.86751061 | Z174: 68.42541583
B175: 1413000000 | C175: 1.35 | D175: 1.175 | E175: 6.863 | F175: -111.4 | G175: 3.426 | H175: 13.73 | I175: 5.324 | J175: -128.7 | K175: -0.2076 | L175: -12.5 | M175: -0.2084 | N175: -114.2 | O175: 1.143 | P175: 8.833 | Q175: -0.2084 | R175: -114.2 | S175: 0.9552490025 | T175: -0.2068812031 | U175: -13.67815878 | V175: -101.9373948 | W175: 1.109228515 | X175: 0.1813648427 | Y175: -13.6763275 | Z175: 63.73338372
B176: 1445000000 | C176: 1.514 | D176: 2.016 | E176: 6.823 | F176: -114.7 | G176: 3.613 | H176: 13.18 | I176: 5.146 | J176: -131.5 | K176: -0.217 | L176: -12.78 | M176: -0.218 | N176: -116.9 | O176: 1.269 | P176: 8.296 | Q176: -0.218 | R176: -116.9 | S176: 0.9532383651 | T176: -0.2113278578 | U176: -13.48697907 | V176: -102.2057408 | W176: 1.127115768 | X176: 0.175151529 | Y176: -13.48488668 | Z176: 58.94119016
B177: 1479000000 | C177: 1.695 | D177: 2.699 | E177: 6.771 | F177: -118 | G177: 3.787 | H177: 12.54 | I177: 4.967 | J177: -134.2 | K177: -0.2269 | L177: -13.07 | M177: -0.228 | N177: -119.6 | O177: 1.39 | P177: 7.673 | Q177: -0.228 | R177: -119.6 | S177: 0.9511643224 | T177: -0.2157501028 | U177: -13.29326429 | V177: -102.4770958 | W177: 1.145200527 | X177: 0.1669850385 | Y177: -13.29415782 | Z177: 54.02982867
B178: 1514000000 | C178: 1.888 | D178: 3.211 | E178: 6.708 | F178: -121.3 | G178: 3.947 | H178: 11.82 | I178: 4.788 | J178: -136.8 | K178: -0.2372 | L178: -13.37 | M178: -0.2385 | N178: -122.4 | O178: 1.507 | P178: 6.964 | Q178: -0.2385 | R178: -122.4 | S178: 0.9489778917 | T178: -0.2203103456 | U178: -13.10397889 | V178: -102.7541465 | W178: 1.163038023 | X178: 0.1566908581 | Y178: -13.10094762 | Z178: 48.9916661
B179: 1549000000 | C179: 2.089 | D179: 3.545 | E179: 6.633 | F179: -124.7 | G179: 4.094 | H179: 11.04 | I179: 4.611 | J179: -139.4 | K179: -0.248 | L179: -13.67 | M179: -0.2495 | N179: -125.2 | O179: 1.617 | P179: 6.168 | Q179: -0.2495 | R179: -125.2 | S179: 0.9466880681 | T179: -0.2250091583 | U179: -12.91240093 | V179: -103.0393651 | W179: 1.180685223 | X179: 0.1442169441 | Y179: -12.91295141 | Z179: 43.86273013
B180: 1585000000 | C180: 2.294 | D180: 3.698 | E180: 6.548 | F180: -128.2 | G180: 4.228 | H180: 10.2 | I180: 4.437 | J180: -141.9 | K180: -0.2593 | L180: -13.97 | M180: -0.2609 | N180: -128.1 | O180: 1.72 | P180: 5.286 | Q180: -0.2609 | R180: -128.1 | S180: 0.9443220549 | T180: -0.2296771412 | U180: -12.71879392 | V180: -103.3294231 | W180: 1.197646417 | X180: 0.1294292914 | Y180: -12.7208742 | Z180: 38.59570509
B181: 1622000000 | C181: 2.499 | D181: 3.677 | E181: 6.451 | F181: -131.6 | G181: 4.349 | H181: 9.309 | I181: 4.267 | J181: -144.4 | K181: -0.2711 | L181: -14.29 | M181: -0.2729 | N181: -131.1 | O181: 1.813 | P181: 4.318 | Q181: -0.2729 | R181: -131.1 | S181: 0.9418803825 | T181: -0.2343133981 | U181: -12.52964204 | V181: -103.626674 | W181: 1.213805527 | X181: 0.1123022001 | Y181: -12.53240921 | Z181: 33.21889287
B182: 1660000000 | C182: 2.701 | D182: 3.487 | E182: 6.344 | F182: -135.1 | G182: 4.457 | H182: 8.379 | I182: 4.105 | J182: -146.9 | K182: -0.2834 | L182: -14.61 | M182: -0.2854 | N182: -134.1 | O182: 1.897 | P182: 3.265 | Q182: -0.2854 | R182: -134.1 | S182: 0.9392801436 | T182: -0.2392449276 | U182: -12.3447555 | V182: -103.9306213 | W182: 1.228614156 | X182: 0.09276813431 | Y182: -12.34148323 | Z182: 27.71087848
B183: 1698000000 | C183: 2.896 | D183: 3.14 | E183: 6.228 | F183: -138.5 | G183: 4.554 | H183: 7.412 | I183: 3.951 | J183: -149.4 | K183: -0.2963 | L183: -14.93 | M183: -0.2984 | N183: -137.2 | O183: 1.968 | P183: 2.13 | Q183: -0.2984 | R183: -137.2 | S183: 0.9366020532 | T183: -0.2441411283 | U183: -12.15204203 | V183: -104.2408623 | W183: 1.24206544 | X183: 0.07085581227 | Y183: -12.15594137 | Z183: 22.08656316
B184: 1738000000 | C184: 3.083 | D184: 2.649 | E184: 6.104 | F184: -142 | G184: 4.639 | H184: 6.412 | I184: 3.806 | J184: -151.8 | K184: -0.3098 | L184: -15.27 | M184: -0.3121 | N184: -140.4 | O184: 2.026 | P184: 0.9154 | Q184: -0.3121 | R184: -140.4 | S184: 0.9338359783 | T184: -0.2489981873 | U184: -11.96377732 | V184: -104.5569045 | W184: 1.253429262 | X184: 0.0466183537 | Y184: -11.96432116 | Z184: 16.31546374
B185: 1778000000 | C185: 3.258 | D185: 2.027 | E185: 5.972 | F185: -145.4 | G185: 4.713 | H185: 5.381 | I185: 3.672 | J185: -154.2 | K185: -0.324 | L185: -15.61 | M185: -0.3263 | N185: -143.7 | O185: 2.069 | P185: -0.3762 | Q185: -0.3263 | R185: -143.7 | S185: 0.9308939978 | T185: -0.2541399621 | U185: -11.77977309 | V185: -104.8808143 | W185: 1.262538323 | X185: 0.02017296799 | Y185: -11.77834133 | Z185: 10.42304649
B186: 1820000000 | C186: 3.42 | D186: 1.29 | E186: 5.834 | F186: -148.8 | G186: 4.775 | H186: 4.319 | I186: 3.552 | J186: -156.6 | K186: -0.3387 | L186: -15.95 | M186: -0.3412 | N186: -147 | O186: 2.095 | P186: -1.741 | Q186: -0.3412 | R186: -147 | S186: 0.9278513948 | T186: -0.2592353375 | U186: -11.58873635 | V186: -105.2121141 | W186: 1.268938688 | X186: -0.008331880612 | Y186: -11.59058006 | Z186: 4.393869939
B187: 1862000000 | C187: 3.569 | D187: 0.4502 | E187: 5.692 | F187: -152.2 | G187: 4.827 | H187: 3.228 | I187: 3.446 | J187: -158.9 | K187: -0.3542 | L187: -16.31 | M187: -0.3567 | N187: -150.4 | O187: 2.102 | P187: -3.173 | Q187: -0.3567 | R187: -150.4 | S187: 0.924730395 | T187: -0.2642890604 | U187: -11.4021116 | V187: -105.5525847 | W187: 1.272182663 | X187: -0.0386686762 | Y187: -11.40276803 | Z187: -1.77448978
B188: 1905000000 | C188: 3.704 | D188: -0.4777 | E188: 5.546 | F188: -155.6 | G188: 4.867 | H188: 2.107 | I188: 3.356 | J188: -161.3 | K188: -0.3703 | L188: -16.67 | M188: -0.3729 | N188: -153.9 | O188: 2.088 | P188: -4.667 | Q188: -0.3729 | R188: -153.9 | S188: 0.9214058555 | T188: -0.2696125038 | U188: -11.21971254 | V188: -105.8969692 | W188: 1.271843567 | X188: -0.07050589498 | Y188: -11.21600764 | Z188: -8.085834593
B189: 1950000000 | C189: 3.823 | D189: -1.481 | E189: 5.399 | F189: -159 | G189: 4.897 | H189: 0.9537 | I189: 3.285 | J189: -163.7 | K189: -0.3872 | L189: -17.04 | M189: -0.3898 | N189: -157.4 | O189: 2.051 | P189: -6.215 | Q189: -0.3898 | R189: -157.4 | S189: =10^(K188/20)*COS(PI()/180*L188) -> 0.9179905058 | T189: =10^(K188/20)*SIN(PI()/180*L188) -> -0.2748865106 | U189: =10*LOG((S188-1)^2+T188^2) -> -11.03099493 | V189: =180/PI()*ATAN2((S188-1),T188) -> -106.2518149 | W189: =10^(O188/20)*COS(PI()/180*P188) -> 1.267528308 | X189: =10^(O188/20)*SIN(PI()/180*P188) -> -0.1034748526 | Y189: =10*LOG((W188-1)^2+X188^2) -> -11.03088125 | Z189: =180/PI()*ATAN2((W188-1),X188) -> -14.53997154
B190: 1995000000 | C190: 3.927 | D190: -2.549 | E190: 5.251 | F190: -162.4 | G190: 4.915 | H190: -0.2338 | I190: 3.233 | J190: -166.1 | K190: -0.4048 | L190: -17.41 | M190: -0.4074 | N190: -161.1 | O190: 1.989 | P190: -7.808 | Q190: -0.4074 | R190: -161.1 | S190: 0.9144153419 | T190: -0.2802630275 | U190: -10.84662697 | V190: -106.6119184 | W190: 1.258896341 | X190: -0.1370933847 | Y190: -10.84713948 | Z190: -21.14552082
B191: 2042000000 | C191: 4.016 | D191: -3.67 | E191: 5.105 | F191: -165.7 | G191: 4.921 | H191: -1.459 | I191: 3.202 | J191: -168.6 | K191: -0.4232 | L191: -17.79 | M191: -0.4258 | N191: -164.8 | O191: 1.899 | P191: -9.435 | Q191: -0.4258 | R191: -164.8 | S191: 0.9107391496 | T191: -0.2855829231 | U191: -10.66147925 | V191: -106.981237 | W191: 1.245675215 | X191: -0.1708134751 | Y191: -10.66401816 | Z191: -27.902563
B192: 2089000000 | C192: 4.09 | D192: -4.835 | E192: 4.963 | F192: -169 | G192: 4.914 | H192: -2.726 | I192: 3.194 | J192: -171 | K192: -0.4425 | L192: -18.18 | M192: -0.4449 | N192: -168.6 | O192: 1.778 | P192: -11.08 | Q192: -0.4449 | R192: -168.6 | S192: 0.9069018781 | T192: -0.2909997478 | U192: -10.48055159 | V192: -107.3569832 | W192: 1.227537743 | X192: -0.2039880446 | Y192: -10.48014173 | Z192: -34.8101814
B193: 2138000000 | C193: 4.148 | D193: -6.037 | E193: 4.825 | F193: -172.3 | G193: 4.893 | H193: -4.04 | I193: 3.212 | J193: -173.6 | K193: -0.4626 | L193: -18.58 | M193: -0.4649 | N193: -172.5 | O193: 1.623 | P193: -12.73 | Q193: -0.4649 | R193: -172.5 | S193: 0.9028916606 | T193: -0.2965064758 | U193: -10.29894454 | V193: -107.7407784 | W193: 1.204282199 | X193: -0.2358342493 | Y193: -10.29724985 | Z193: -41.87629054
B194: 2188000000 | C194: 4.191 | D194: -7.267 | E194: 4.693 | F194: -175.6 | G194: 4.856 | H194: -5.406 | I194: 3.257 | J194: -176.3 | K194: -0.4836 | L194: -18.98 | M194: -0.4857 | N194: -176.5 | O194: 1.431 | P194: -14.37 | Q194: -0.4857 | R194: -176.5 | S194: 0.8987175402 | T194: -0.3021026671 | U194: -10.11681355 | V194: -108.1340522 | W194: 1.175821356 | X194: -0.2656297894 | Y194: -10.11668461 | Z194: -49.10053246
B195: 2239000000 | C195: 4.22 | D195: -8.52 | E195: 4.57 | F195: -178.9 | G195: 4.801 | H195: -6.832 | I195: 3.331 | J195: -179 | K195: -0.5055 | L195: -19.39 | M195: -0.5073 | N195: 179.4 | O195: 1.198 | P195: -15.95 | Q195: -0.5073 | R195: 179.4 | S195: 0.8944215098 | T195: -0.3076248374 | U195: -9.934306031 | V195: -108.5341603 | W195: 1.142208102 | X195: -0.2926317956 | Y195: -9.936523484 | Z195: -56.49927493
B196: 2291000000 | C196: 4.233 | D196: -9.791 | E196: 4.457 | F196: 177.9 | G196: 4.725 | H196: -8.324 | I196: 3.436 | J196: 178.1 | K196: -0.5283 | L196: -19.81 | M196: -0.5299 | N196: 175.2 | O196: 0.9192 | P196: -17.46 | Q196: -0.5299 | R196: 175.2 | S196: 0.8899506206 | T196: -0.3132265087 | U196: -9.755970197 | V196: -108.9424948 | W196: 1.103697688 | X196: -0.3154381282 | Y196: -9.752824196 | Z196: -64.08198252
B197: 2344000000 | C197: 4.232 | D197: -11.07 | E197: 4.356 | F197: 174.6 | G197: 4.623 | H197: -9.889 | I197: 3.574 | J197: 175.1 | K197: -0.5521 | L197: -20.24 | M197: -0.5533 | N197: 171 | O197: 0.5912 | P197: -18.84 | Q197: -0.5533 | R197: 171 | S197: 0.8853037325 | T197: -0.3189035091 | U197: -9.577328491 | V197: -109.3584768 | W197: 1.060412851 | X197: -0.3335331623 | Y197: -9.576039787 | Z197: -71.80214603
B198: 2399000000 | C198: 4.216 | D198: -12.36 | E198: 4.268 | F198: 171.3 | G198: 4.491 | H198: -11.53 | I198: 3.747 | J198: 171.8 | K198: -0.5769 | L198: -20.67 | M198: -0.5777 | N198: 166.6 | O198: 0.2093 | P198: -20.03 | Q198: -0.5777 | R198: 166.6 | S198: 0.880469617 | T198: -0.3246478162 | U198: -9.398512967 | V198: -109.7815385 | W198: 1.013084722 | X198: -0.3456715913 | Y198: -9.397023372 | Z198: -79.73332811
B199: 2455000000 | C199: 4.184 | D199: -13.66 | E199: 4.195 | F199: 168 | G199: 4.319 | H199: -13.26 | I199: 3.956 | J199: 168.3 | K199: -0.6028 | L199: -21.11 | M199: -0.6031 | N199: 162.2 | O199: -0.2308 | P199: -20.97 | Q199: -0.6031 | R199: 162.2 | S199: 0.8755050709 | T199: -0.330302034 | U199: -9.219649315 | V199: -110.2129387 | W199: 0.9624274108 | X199: -0.3508657221 | Y199: -9.220507875 | Z199: -87.83221538
B200: 2512000000 | C200: 4.138 | D200: -14.95 | E200: 4.138 | F200: 164.6 | G200: 4.098 | H200: -15.06 | I200: 4.202 | J200: 164.5 | K200: -0.6296 | L200: -21.55 | M200: -0.6295 | N200: 157.6 | O200: -0.7325 | P200: -21.54 | Q200: -0.6295 | R200: 157.6 | S200: 0.8703436371 | T200: -0.3360121922 | U200: -9.044874612 | V200: -110.6520478 | W200: 0.9092827634 | X200: -0.3484948069 | Y200: -9.047662788 | Z200: -96.11224772
B201: 2570000000 | C201: 4.075 | D201: -16.24 | E201: 4.101 | F201: 161.2 | G201: 3.814 | H201: -16.93 | I201: 4.484 | J201: 160.3 | K201: -0.6576 | L201: -22 | M201: -0.657 | N201: 152.9 | O201: -1.297 | P201: -21.62 | Q201: -0.657 | R201: 152.9 | S201: 0.8650643635 | T201: -0.3416302621 | U201: -8.870099148 | V201: -111.1000072 | W201: 0.8549354946 | X201: -0.3374577063 | Y201: -8.871328674 | Z201: -104.5909372
B202: 2630000000 | C202: 3.995 | D202: -17.52 | E202: 4.083 | F202: 157.8 | G202: 3.447 | H202: -18.81 | I202: 4.799 | J202: 155.7 | K202: -0.6867 | L202: -22.46 | M202: -0.6855 | N202: 148.2 | O202: -1.921 | P202: -21.02 | Q202: -0.6855 | R202: 148.2 | S202: 0.8595791258 | T202: -0.34729251 | U202: -8.699273306 | V202: -111.5528133 | W202: 0.8006975624 | X202: -0.317341946 | Y202: -8.699191151 | Z202: -113.2616421
B203: 2692000000 | C203: 3.897 | D203: -18.78 | E203: 4.088 | F203: 154.2 | G203: 2.971 | H203: -20.61 | I203: 5.143 | J203: 150.6 | K203: -0.7168 | L203: -22.93 | M203: -0.7151 | N203: 143.3 | O203: -2.592 | P203: -19.52 | Q203: -0.7151 | R203: 143.3 | S203: 0.8538976323 | T203: -0.3529977687 | U203: -8.528491362 | V203: -112.0149742 | W203: 0.7482444678 | X203: -0.2875238536 | Y203: -8.525482307 | Z203: -122.1303353
B204: 2754000000 | C204: 3.78 | D204: -20.02 | E204: 4.116 | F204: 150.6 | G204: 2.351 | H204: -22.13 | I204: 5.504 | J204: 144.8 | K204: -0.7481 | L204: -23.41 | M204: -0.7459 | N204: 138.3 | O204: -3.281 | P204: -16.85 | Q204: -0.7459 | R204: 138.3 | S204: 0.848029427 | T204: -0.3587450282 | U204: -8.357860021 | V204: -112.4841912 | W204: 0.6993471968 | X204: -0.2479265956 | Y204: -8.35496017 | Z204: -131.2053499
B205: 2818000000 | C205: 3.642 | D205: -21.22 | E205: 4.17 | F205: 146.8 | G205: 1.546 | H205: -23.01 | I205: 5.866 | J205: 138.3 | K205: -0.7806 | L205: -23.89 | M205: -0.7778 | N205: 133.2 | O205: -3.932 | P205: -12.76 | Q205: -0.7778 | R205: 133.2 | S205: 0.8419547923 | T205: -0.3645208537 | U205: -8.187481117 | V205: -112.9583524 | W205: 0.6559825683 | X205: -0.1986776132 | Y205: -8.185574484 | Z205: -140.4900673
B206: 2884000000 | C206: 3.481 | D206: -22.37 | E206: 4.25 | F206: 142.9 | G206: 0.5238 | H206: -22.49 | I206: 6.204 | J206: 131 | K206: -0.8142 | L206: -24.38 | M206: -0.811 | N206: 128 | O206: -4.457 | P206: -7.114 | Q206: -0.811 | R206: 128 | S206: 0.8357385385 | T206: -0.3701738492 | U206: -8.017451227 | V206: -113.440095 | W206: 0.6202116367 | X206: -0.1404533597 | Y206: -8.018357944 | Z206: -149.9926237
B207: 2951000000 | C207: 3.295 | D207: -23.45 | E207: 4.359 | F207: 138.9 | G207: -0.6926 | H207: -19.3 | I207: 6.485 | J207: 122.8 | K207: -0.8491 | L207: -24.87 | M207: -0.8454 | N207: 122.6 | O207: -4.74 | P207: -0.1276 | Q207: -0.8454 | R207: 122.6 | S207: 0.8293279083 | T207: -0.3758508202 | U207: -7.851283305 | V207: -113.928843 | W207: 0.5940099755 | X207: -0.07413525394 | Y207: -7.852452784 | Z207: -159.7045946
B208: 3020000000 | C208: 3.082 | D208: -24.43 | E208: 4.497 | F208: 134.6 | G208: -1.882 | H208: -11.66 | I208: 6.669 | J208: 113.9 | K208: -0.8851 | L208: -25.37 | M208: -0.8812 | N208: 117.2 | O208: -4.682 | P208: 7.499 | Q208: -0.8812 | R208: 117.2 | S208: 0.8227707485 | T208: -0.3813939676 | U208: -7.685487554 | V208: -114.4225757 | W208: 0.5794272595 | X208: -0.00129040989 | Y208: -7.687243156 | Z208: -169.6515966
B209: 3090000000 | C209: 2.837 | D209: -25.27 | E209: 4.664 | F209: 130.1 | G209: -2.467 | H209: 0.8013 | I209: 6.715 | J209: 104.3 | K209: -0.9224 | L209: -25.88 | M209: -0.9182 | N209: 111.6 | O209: -4.262 | P209: 14.72 | Q209: -0.9182 | R209: 111.6 | S209: 0.8160220251 | T209: -0.3869522723 | U209: -7.523419788 | V209: -114.9237341 | W209: 0.5783218007 | X209: 0.07612724093 | Y209: -7.523136709 | Z209: -179.8242045
B210: 3162000000 | C210: 2.561 | D210: -25.91 | E210: 4.86 | F210: 125.3 | G210: -1.928 | H210: 13.91 | I210: 6.596 | J210: 94.48 | K210: -0.961 | L210: -26.4 | M210: -0.9567 | N210: 105.9 | O210: -3.549 | P210: 20.63 | Q210: -0.9567 | R210: 105.9 | S210: 0.8090635626 | T210: -0.3925112118 | U210: -7.36174738 | V210: -115.4289343 | W210: 0.5921161548 | X210: 0.1555596983 | Y210: -7.361087299 | Z210: 169.7663948
B211: 3236000000 | C211: 2.25 | D211: -26.28 | E211: 5.084 | F211: 120.1 | G211: -0.6089 | H211: 22.41 | I211: 6.307 | J211: 84.69 | K211: -1.001 | L211: -26.93 | M211: -0.9967 | N211: 100 | O211: -2.661 | P211: 24.77 | Q211: -0.9967 | R211: 100 | S211: 0.8018964232 | T211: -0.3980648414 | U211: -7.200553821 | V211: -115.9405293 | W211: 0.6219678429 | X211: 0.2341540876 | Y211: -7.199499079 | Z211: 159.1240319
B212: 3311000000 | C212: 1.91 | D212: -26.25 | E212: 5.331 | F212: 114.6 | G212: 0.8204 | H212: 25.72 | I212: 5.868 | J212: 75.32 | K212: -1.042 | L212: -27.46 | M212: -1.038 | N212: 94.08 | O212: -1.708 | P212: 27.13 | Q212: -1.038 | R212: 94.08 | S212: 0.7945126668 | T212: -0.4036024991 | U212: -7.039919135 | V212: -116.4579963 | W212: 0.6683968637 | X212: 0.3084181204 | Y212: -7.039132703 | Z212: 148.2258197
B213: 3388000000 | C213: 1.547 | D213: -25.7 | E213: 5.597 | F213: 108.6 | G213: 2.037 | H213: 25.68 | I213: 5.318 | J213: 66.63 | K213: -1.085 | L213: -28 | M213: -1.081 | N213: 87.98 | O213: -0.7658 | P213: 27.93 | Q213: -1.081 | R213: 87.98 | S213: 0.7870215471 | T213: -0.4089994004 | U213: -6.87991947 | V213: -116.9821439 | W213: 0.7311010324 | X213: 0.3746064752 | Y213: -6.880716576 | Z213: 137.0746544
B214: 3467000000 | C214: 1.185 | D214: -24.46 | E214: 5.871 | F214: 102 | G214: 2.984 | H214: 23.9 | I214: 4.7 | J214: 58.73 | K214: -1.129 | L214: -28.55 | M214: -1.126 | N214: 81.75 | O214: 0.1216 | P214: 27.44 | Q214: -1.126 | R214: 81.75 | S214: 0.7792645625 | T214: -0.4143423176 | U214: -6.723543606 | V214: -117.5073667 | W214: 0.8089592242 | X214: 0.4288643259 | Y214: -6.723618458 | Z214: 125.6714352
B215: 3548000000 | C215: 0.8633 | D215: -22.41 | E215: 6.14 | F215: 94.9 | G215: 3.696 | H215: 21.32 | I215: 4.058 | J215: 51.63 | K215: -1.175 | L215: -29.1 | M215: -1.172 | N215: 75.37 | O215: 0.9299 | P215: 25.91 | Q215: -1.172 | R215: 75.37 | S215: 0.7713340693 | T215: -0.4196721937 | U215: -6.567811397 | V215: -118.0458745 | W215: 0.9000059305 | X215: 0.4673161972 | Y215: -6.567466611 | Z215: 114.0109342
B216: 3631000000 | C216: 0.6414 | D216: -19.52 | E216: 6.386 | F216: 87.15 | G216: 4.225 | H216: 18.45 | I216: 3.426 | J216: 45.26 | K216: -1.222 | L216: -29.67 | M216: -1.221 | N216: 68.85 | O216: 1.647 | P216: 23.55 | Q216: -1.221 | R216: 68.85 | S216: 0.76321735 | T216: -0.4248013275 | U216: -6.412794519 | V216: -118.5845508 | W216: 1.001122563 | X216: 0.4863349427 | Y216: -6.413357662 | Z216: 102.0777451
B217: 3715000000 | C217: 0.5897 | D217: -16.06 | E217: 6.587 | F217: 78.79 | G217: 4.617 | H217: 15.53 | I217: 2.828 | J217: 39.52 | K217: -1.271 | L217: -30.24 | M217: -1.271 | N217: 62.19 | O217: 2.267 | P217: 20.52 | Q217: -1.271 | R217: 62.19 | S217: 0.7548579048 | T217: -0.4300396708 | U217: -6.261281063 | V217: -119.1351298 | W217: 1.108109807 | X217: 0.4829701262 | Y217: -6.261267374 | Z217: 89.86774957
B218: 3802000000 | C218: 0.7556 | D218: -12.57 | E218: 6.719 | F218: 69.86 | G218: 4.906 | H218: 12.65 | I218: 2.284 | J218: 34.29 | K218: -1.322 | L218: -30.82 | M218: -1.323 | N218: 55.37 | O218: 2.787 | P218: 16.93 | Q218: -1.323 | R218: 55.37 | S218: 0.7463202851 | T218: -0.4350665857 | U218: -6.107829284 | V218: -119.6850994 | W218: 1.215852566 | X218: 0.4550724512 | Y218: -6.109263271 | Z218: 77.38269234
B219: 3890000000 | C219: 1.127 | D219: -9.756 | E219: 6.757 | F219: 60.49 | G219: 5.117 | H219: 9.835 | I219: 1.806 | J219: 29.48 | K219: -1.375 | L219: -31.41 | M219: -1.376 | N219: 48.41 | O219: 3.203 | P219: 12.88 | Q219: -1.376 | R219: 48.41 | S219: 0.7375347405 | T219: -0.4400079516 | U219: -5.957885365 | V219: -120.2457133 | W219: 1.318585146 | X219: 0.4013710585 | Y219: -5.957081795 | Z219: 64.62381173
B220: 3981000000 | C220: 1.632 | D220: -8.162 | E220: 6.688 | F220: 50.87 | G220: 5.268 | H220: 7.093 | I220: 1.405 | J220: 24.98 | K220: -1.429 | L220: -32.01 | M220: -1.432 | N220: 41.29 | O220: 3.512 | P220: 8.453 | Q220: -1.432 | R220: 41.29 | S220: 0.7285059372 | T220: -0.4448564645 | U220: -5.808789483 | V220: -120.816126 | W220: 1.409557913 | X220: 0.3223140616 | Y220: -5.8071318 | Z220: 51.55948546
B221: 4074000000 | C221: 2.17 | D221: -7.933 | E221: 6.507 | F221: 41.22 | G221: 5.37 | H221: 4.391 | I221: 1.09 | J221: 20.68 | K221: -1.486 | L221: -32.61 | M221: -1.49 | N221: 34.01 | O221: 3.71 | P221: 3.707 | Q221: -1.49 | R221: 34.01 | S221: =10^(K220/20)*COS(PI()/180*L220) -> 0.7193216139 | T221: =10^(K220/20)*SIN(PI()/180*L220) -> -0.4496566157 | U221: =10*LOG((S220-1)^2+T220^2) -> -5.660601605 | V221: =180/PI()*ATAN2((S220-1),T220) -> -121.3955443 | W221: =10^(O220/20)*COS(PI()/180*P220) -> 1.482027801 | X221: =10^(O220/20)*SIN(PI()/180*P220) -> 0.2202478229 | Y221: =10*LOG((W220-1)^2+X220^2) -> -5.660317983 | Z221: =180/PI()*ATAN2((W220-1),X220) -> 38.20205309
B222: 4169000000 | C222: 2.663 | D222: -8.886 | E222: 6.226 | F222: 31.78 | G222: 5.43 | H222: 1.694 | I222: 0.8671 | J222: 16.51 | K222: -1.545 | L222: -33.22 | M222: -1.55 | N222: 26.58 | O222: 3.79 | P222: -1.3 | Q222: -1.55 | R222: 26.58 | S222: 0.7098995252 | T222: -0.454174282 | U222: -5.513378406 | V222: -121.9726602 | W222: 1.529644063 | X222: 0.09910530857 | Y222: -5.515102557 | Z222: 24.55657734
B223: 4266000000 | C223: 3.064 | D223: -10.68 | E223: 5.865 | F223: 22.7 | G223: 5.45 | H223: -1.047 | I223: 0.7451 | J223: 12.36 | K223: -1.606 | L223: -33.83 | M223: -1.612 | N223: 18.98 | O223: 3.743 | P223: -6.511 | Q223: -1.612 | R223: 18.98 | S223: 0.7002512773 | T223: -0.4585807797 | U223: -5.369546913 | V223: -122.5681057 | W223: 1.546636312 | X223: -0.03509808784 | Y223: -5.370861042 | Z223: 10.5984444
B224: 4365000000 | C224: 3.357 | D224: -12.99 | E224: 5.453 | F224: 14.11 | G224: 5.431 | H224: -3.888 | I224: 0.7323 | J224: 8.139 | K224: -1.67 | L224: -34.46 | M224: -1.675 | N224: 11.21 | O224: 3.555 | P224: -11.87 | Q224: -1.675 | R224: 11.21 | S224: 0.6904632887 | T224: -0.4627486122 | U224: -5.226679779 | V224: -123.17041 | W224: 1.528761627 | X224: -0.1744777036 | Y224: -5.228163083 | Z224: -3.673769204
B225: 4467000000 | C225: 3.547 | D225: -15.55 | E225: 5.021 | F225: 6.036 | G225: 5.366 | H225: -6.899 | I225: 0.8382 | J225: 3.725 | K225: -1.735 | L225: -35.08 | M225: -1.741 | N225: 3.277 | O225: 3.208 | P225: -17.29 | Q225: -1.741 | R225: 3.277 | S225: 0.6803023001 | T225: -0.466859871 | U225: -5.08709405 | V225: -123.7789206 | W225: 1.473542531 | X225: -0.3097183964 | Y225: -5.085944203 | Z225: -18.26155773
B226: 4571000000 | C226: 3.645 | D226: -18.18 | E226: 4.595 | F226: -1.54 | G226: 5.242 | H226: -10.17 | I226: 1.073 | J226: -1.026 | K226: -1.803 | L226: -35.71 | M226: -1.809 | N226: -4.833 | O226: 2.677 | P226: -22.67 | Q226: -1.809 | R226: -4.833 | S226: 0.6701766459 | T226: -0.4706586342 | U226: -4.94626474 | V226: -124.4026799 | W226: 1.381395958 | X226: -0.4299924546 | Y226: -4.946220577 | Z226: -33.18651497
B227: 4677000000 | C227: 3.666 | D227: -20.78 | E227: 4.199 | F227: -8.674 | G227: 5.037 | H227: -13.81 | I227: 1.449 | J227: -6.309 | K227: -1.874 | L227: -36.34 | M227: -1.878 | N227: -13.12 | O227: 1.926 | P227: -27.87 | Q227: -1.878 | R227: -13.12 | S227: 0.65977556 | T227: -0.4742714677 | U227: -4.810874885 | V227: -125.0216108 | W227: 1.255825676 | X227: -0.5245508206 | Y227: -4.810172914 | Z227: -48.42752241
B228: 4786000000 | C228: 3.62 | D228: -23.28 | E228: 3.852 | F228: -15.45 | G228: 4.707 | H228: -17.95 | I228: 1.975 | J228: -12.39 | K228: -1.946 | L228: -36.97 | M228: -1.95 | N228: -21.59 | O228: 0.9024 | P228: -32.61 | Q228: -1.95 | R228: -21.59 | S228: 0.6491925315 | T228: -0.4775774612 | U228: -4.676455921 | V228: -125.6542284 | W228: 1.103462126 | X228: -0.5835135814 | Y228: -4.677549232 | Z228: -64.00131068
B229: 4898000000 | C229: 3.518 | D229: -25.65 | E229: 3.57 | F229: -21.96 | G229: 4.171 | H229: -22.75 | I229: 2.655 | J229: -19.67 | K229: -2.021 | L229: -37.6 | M229: -2.023 | N229: -30.25 | O229: -0.4702 | P229: -36.4 | Q229: -2.023 | R229: -30.25 | S229: 0.6385867136 | T229: -0.4806855818 | U229: -4.545121366 | V229: -126.2993724 | W229: 0.9345808668 | X229: -0.5979192535 | Y229: -4.544547536 | Z229: -79.94544819
B230: 5012000000 | C230: 3.365 | D230: -27.88 | E230: 3.366 | F230: -28.31 | G230: 3.265 | H230: -28.25 | I230: 3.472 | J230: -28.69 | K230: -2.098 | L230: -38.24 | M230: -2.098 | N230: -39.09 | O230: -2.304 | P230: -38.22 | Q230: -2.098 | R230: -39.09 | S230: 0.6278183121 | T230: -0.4834851877 | U230: -4.416776768 | V230: -126.9384243 | W230: 0.7624802179 | X230: -0.562148899 | Y230: -4.415469266 | Z230: -96.24397057
B231: 5129000000 | C231: 3.163 | D231: -29.95 | E231: 3.25 | F231: -34.61 | G231: 1.65 | H231: -33.88 | I231: 4.359 | J231: -40.19 | K231: -2.177 | L231: -38.87 | M231: -2.175 | N231: -48.14 | O231: -4.728 | P231: -35.67 | Q231: -2.175 | R231: -48.14 | S231: 0.6168857025 | T231: -0.4861389202 | U231: -4.291336364 | V231: -127.5886889 | W231: 0.6025930643 | X231: -0.4745346761 | Y231: -4.289588046 | Z231: -112.9050846
B232: 5248000000 | C232: 2.911 | D232: -31.83 | E232: 3.233 | F232: -40.99 | G232: -1.377 | H232: -35.89 | I232: 5.149 | J232: -54.86 | K232: -2.257 | L232: -39.51 | M232: -2.253 | N232: -57.38 | O232: -7.583 | P232: -22.87 | Q232: -2.253 | R232: -57.38 | S232: 0.6059666084 | T232: -0.4884297732 | U232: -4.166792158 | V232: -128.2407876 | W232: 0.4713722495 | X232: -0.3383412135 | Y232: -4.166703548 | Z232: -129.9450487
B233: 5370000000 | C233: 2.605 | D233: -33.47 | E233: 3.323 | F233: -47.58 | G233: -6.058 | H233: -13.95 | I233: 5.554 | J233: -72.62 | K233: -2.34 | L233: -40.15 | M233: -2.334 | N233: -66.83 | O233: -8.909 | P233: 6.242 | Q233: -2.334 | R233: -66.83 | S233: 0.5949679352 | T233: -0.4906281474 | U233: -4.046956629 | V233: -128.8943333 | W233: 0.3848513679 | X233: -0.1623301712 | Y233: -4.045896808 | Z233: -147.3792612
B234: 5495000000 | C234: 2.239 | D234: -34.8 | E234: 3.527 | F234: -54.57 | G234: -3.807 | H234: 31.99 | I234: 5.303 | J234: -91.69 | K234: -2.424 | L234: -40.79 | M234: -2.416 | N234: -76.49 | O234: -6.644 | P234: 31.94 | Q234: -2.416 | R234: -76.49 | S234: 0.5838447601 | T234: -0.4925143656 | U234: -3.927949529 | V234: -129.5409599 | W234: 0.356424571 | X234: 0.03898447665 | Y234: -3.928035672 | Z234: -165.2173365
B235: 5623000000 | C235: 1.806 | D235: -35.65 | E235: 3.849 | F235: -62.16 | G235: 0.5888 | H235: 37.49 | I235: 4.417 | J235: -109.3 | K235: -2.509 | L235: -41.43 | M235: -2.501 | N235: -86.37 | O235: -3.538 | P235: 40.96 | Q235: -2.501 | R235: -86.37 | S235: 0.5727412447 | T235: -0.4942025656 | U235: -3.811619091 | V235: -130.1964932 | W235: 0.3949156442 | X235: 0.2461960265 | Y235: -3.812104453 | Z235: 176.5335532
B236: 5754000000 | C236: 1.304 | D236: -35.73 | E236: 4.285 | F236: -70.64 | G236: 2.961 | H236: 31.64 | I236: 3.191 | J236: -123.7 | K236: -2.596 | L236: -42.08 | M236: -2.589 | N236: -96.46 | O236: -0.996 | P236: 41 | Q236: -2.589 | R236: -96.46 | S236: 0.5616619354 | T236: -0.4956945101 | U236: -3.697896117 | V236: -130.8447838 | W236: 0.502508301 | X236: 0.4362082601 | Y236: -3.698370938 | Z236: 157.8596321
B237: 5888000000 | C237: 0.7598 | D237: -34.57 | E237: 4.816 | F237: -80.35 | G237: 4.217 | H237: 24.75 | I237: 1.916 | J237: -135.1 | K237: -2.686 | L237: -42.73 | M237: -2.679 | N237: -106.8 | O237: 0.9454 | P237: 36.92 | Q237: -2.679 | R237: -106.8 | S237: 0.5504611783 | T237: -0.4970309287 | U237: -3.586713665 | V237: -131.4860317 | W237: 0.6729454529 | X237: 0.5849825575 | Y237: -3.587484117 | Z237: 138.7552248
B238: 6026000000 | C238: 0.2692 | D238: -31.61 | E238: 5.397 | F238: -91.68 | G238: 4.913 | H238: 18.56 | I238: 0.7602 | J238: -144.1 | K238: -2.777 | L238: -43.39 | M238: -2.773 | N238: -117.3 | O238: 2.405 | P238: 30.72 | Q238: -2.773 | R238: -117.3 | S238: 0.5391714991 | T238: -0.4980560915 | U238: -3.4763287 | V238: -132.1277157 | W238: 0.8914046608 | X238: 0.6697722479 | Y238: -3.475899644 | Z238: 119.2088691
B239: 6166000000 | C239: 0.05357 | D239: -26.72 | E239: 5.938 | F239: -105 | G239: 5.315 | H239: 13.17 | I239: -0.2034 | J239: -151.6 | K239: -2.871 | L239: -44.05 | M239: -2.869 | N239: -128.1 | O239: 3.47 | P239: 23.25 | Q239: -2.869 | R239: -128.1 | S239: 0.5278395411 | T239: -0.4989785602 | U239: -3.368431996 | V239: -132.7766739 | W239: 1.133923603 | X239: 0.6738100337 | Y239: -3.368761823 | Z239: 99.20966149
B240: 6310000000 | C240: 0.3598 | D240: -21.46 | E240: 6.303 | F240: -120.2 | G240: 5.546 | H240: 8.375 | I240: -0.9443 | J240: -158 | K240: -2.967 | L240: -44.72 | M240: -2.968 | N240: -139.1 | O240: 4.194 | P240: 14.95 | Q240: -2.968 | R240: -139.1 | S240: 0.5164375125 | T240: -0.499589601 | U240: -3.261361239 | V240: -133.4181733 | W240: 1.369988217 | X240: 0.5885933886 | Y240: -3.26098955 | Z240: 78.75863355
B241: 6457000000 | C241: 1.121 | D241: -18.62 | E241: 6.344 | F241: -136.8 | G241: 5.669 | H241: 3.919 | I241: -1.448 | J241: -163.8 | K241: -3.066 | L241: -45.39 | M241: -3.07 | N241: -150.4 | O241: 4.601 | P241: 6.073 | Q241: -3.07 | R241: -150.4 | S241: 0.5049484311 | T241: -0.5000371062 | U241: -3.15673186 | V241: -134.0660604 | W241: 1.565831955 | X241: 0.4180991974 | Y241: -3.157531409 | Z241: 57.84664223
B242: 6607000000 | C242: 1.939 | D242: -19.36 | E242: 5.999 | F242: -153.4 | G242: 5.711 | H242: -0.4287 | I242: -1.702 | J242: -169.4 | K242: -3.168 | L242: -46.07 | M242: -3.175 | N242: -161.9 | O242: 4.692 | P242: -3.225 | Q242: -3.175 | R242: -161.9 | S242: 0.4934107867 | T242: -0.5001740083 | U242: -3.052955271 | V242: -134.7129423 | W242: 1.688907387 | X242: 0.1796872034 | Y242: -3.054187181 | Z242: 36.46108585
... 18 more rows

Sheet Info
B1: For updates and with comments please contact:
B3: Application information and hints:
B4: 1., Enter your data in the top grey highlighted area of
B5: worksheet. Select any of the red parameters and
B6: enter your data in the units shown. Be careful with N and F_steps: large numbers may result in long computation time.
B7: 2., There is minimal error checking of your entered input data. Physically invalid input (e.g., negative resistance) may result in meaningless output.
B8: 3., This spreadsheet uses macros to create SPICE input files. Berkeley SPICE 2.6 is called and the output file is parsed and result posted on the spredsheet for plotting. The SPICE.exe file needs to be in the directory where the spreadsheet file is.
B9: 4., If Automatic Recalculation is selected in the Tools/Options menu, numerical and graphical outputs are automatically updated after each new entry.
B10: 5., On slower computers, deselect Automatic Recalculation, and use Calc. Now (F9).
B11: 6., This file uses dot (.) as separator between the integer and fractional parts of numbers. Preferences in your Microsoft Excel installation must be set accordingly.
B12: 7., The calculation part of the worksheets can be viewed and changed if necessary below the input/output areas. To navigate among cells, you can switch back on the Row and Column Headers and Scroll bars in the Tools/Options menu.

Sheet Copyright
B2: This toolset is copyright, Istvan Novak. All rights reserved. You are hereby granted a limited right to run, copy, and reproduce the toolset for your personal, non-commercial purposes only. By using the file(s), you acknowledge not to run, show or disseminate in any way the toolset in full or in part at public or commercial presentations without the express written consent of the author.
